Cogmind - Beta 9.6 @@@ ROGUE MODE // 2020.07.04 @ 22:34:13 Player: aoemica Result: Destroyed by G-73 Enforcer with Heavy Laser Performance ------------- Evolutions (9) 4500 Regions Visited (34) 6800 Robots Destroyed (374) 1870 Value Destroyed (16171) 16171 Prototype IDs (79) 1580 Alien Tech Used (7) 1400 Bonus (7382) 7382 TOTAL SCORE: 39703 Bonus ------- High Alert Combat Kills 374 Follower Combat Kills 3309 Network Hubs Disabled 200 Met Data Miner 300 Met Zhirov 300 Met Warlord at Base 500 MAIN.C Attacked Warlord 500 Built Enhanced Grunts 300 A7 Reached Mainframe 300 Met R17 at Cetus 500 Met R17 at Research 2000 Friendly Fire -1201 Cogmind --------- Core Integrity 0/1600 Matter 291/300 Energy 600/600 System Corruption 7% Temperature Cool (9) Movement Core (1150) Ox22 Location -1/Command Parts ------- > --- POWER (2) -------- (None) > --- PROPULSION (4) --- (None) > --- UTILITY (17) ----- High-capacity Storage Unit High-capacity Storage Unit Energy Well Advanced Signal Interpreter > --- WEAPON (3) ------- (None) > --- INVENTORY (20) --- Vortex Chain Reactor Advanced Heat Sink Precision Matter Filter Advanced Component Analysis Suite Dimensional Node Initializer Transdimensional Reconstructor High-powered Transdimensional Reconstructor High-powered Transdimensional Reconstructor Core Reset Matrix Heavy Wave Gun Advanced Variable Charge Gun Proton Burst Cannon Compact HERF Cannon Compact HERF Cannon Railgun Molecular Deconstructor Core Stripper Peak State ------------ > --- POWER ------------ Reinforced Quantum Reactor Reinforced Quantum Reactor > --- PROPULSION ------- Biometal Heavy Treads Biometal Heavy Treads > --- UTILITY ---------- Advanced Power Amplifier Advanced Heat Sink Advanced Cooling System High-capacity Storage Unit High-capacity Storage Unit High-capacity Storage Unit High-capacity Storage Unit High-capacity Storage Unit Advanced Energy Well Advanced Signal Interpreter Advanced Target Analyzer Experimental Transmission Jammer Centrium Medium Armor Plating Damper Plating System Backup Module > --- WEAPON ----------- Core Cannon Phasing Sabre > --- INVENTORY -------- Particle Reactor Vortex Chain Reactor Biometal Heavy Treads Biometal Heavy Treads Advanced Heat Sink Energy Well Improved Energy Well Experimental Sensor Array Precision Matter Filter Quantum Capacitor Experimental Thermal Shield Advanced Component Analysis Suite Dimensional Node Initializer Transdimensional Reconstructor High-powered Transdimensional Reconstructor High-powered Transdimensional Reconstructor High-powered Transdimensional Reconstructor Core Reset Matrix Subatomic Replicator Heavy Wave Gun Advanced Variable Charge Gun HERF Cannon HERF Cannon Proton Burst Cannon Compact HERF Cannon Compact HERF Cannon Compact HERF Cannon Cooled Plasma Cannon Vortex Driver Enhanced Nova Cannon Enhanced Nova Cannon Enhanced Nova Cannon Enhanced Nova Cannon Railgun Gamma Bomb Array Advanced Remote Datajack Molecular Deconstructor Core Stripper [Rating: 209] Favorites ----------- Power Quantum Reactor Engine Light Angular Momentum Engine Power Core Nuclear Core Reactor Quantum Reactor Propulsion Armored Wheel Treads Light Treads Leg Experimental Myomer Leg Wheel Armored Wheel Utility High-capacity Storage Unit Device Advanced Cooling System Storage High-capacity Storage Unit Processor Advanced Signal Interpreter Hackware Hacking Suite Protection Centrium Medium Armor Plating Artifact Stasis Generator Weapon Phasing Sabre Energy Gun Advanced Variable Charge Gun Energy Cannon EM Pulse Cannon Ballistic Gun Gauss Rifle Ballistic Cannon Improved Light Cannon Launcher Shock Bomb Launcher Special Weapon Improved Plasma Cutter Impact Weapon Mace Slashing Weapon Phasing Sabre Build | -11 -10 -10 -9 -9 -9 -8 -8 -7 -7 -7 -7 -6 -6 -6 -6 -6 -6 -5 -5 -5 -5 -4 -4 -4 -4 -4 -4 -4 -3 -3 -3 -2 -1 -1 ------- Run | Scr Mat Min Mat Min Exi Min Mat Fac Low Low Dat Pro Fac Ext Cet Arc Hub Fac Upp Upp War Pro Fac Was Fac Upp Upp Zhi Pro Res Qua Res Acc Com Slots Evolved 18 | . . . 2 . . . 2 2 . . . . 2 . . . . 2 . . . . 2 . . . . . . 2 . 2 2 . Power 1 | . . . . . . . . . . . . . 1 . . . . . . . . . . . . . . . . . . . . . Propulsion 2 | . . . . . . . . . . . . . . . . . . . . . . . 1 . . . . . . 1 . . . . Utility 15 | . . . 2 . . . 2 2 . . . . 1 . . . . 2 . . . . 1 . . . . . . 1 . 2 2 . Weapon . | . . . . . . . . . . . . . . . . . . . . . . . . . . . . . . . . . . . Parts Attached 721 | 8 20 10 40 3 5 6 52 9 5 11 2 22 50 36 23 3 17 51 15 7 11 12 80 10 31 4 7 11 16 14 34 24 40 32 Power 39 | 1 1 1 1 . . . 3 . . 1 . 1 3 5 3 . . 3 . . 2 . 2 2 1 . . 3 2 2 1 . . 1 Engine 15 | 1 1 1 1 . . . 1 . . 1 . . 3 5 . . . 1 . . . . . . . . . . . . . . . . Core 3 | . . . . . . . 2 . . . . 1 . . . . . . . . . . . . . . . . . . . . . . Reactor 21 | . . . . . . . . . . . . . . . 3 . . 2 . . 2 . 2 2 1 . . 3 2 2 1 . . 1 Propulsion 69 | 3 8 . 10 . 2 3 17 . . . . . 2 . 1 2 . 3 . . 4 1 1 2 1 . . 2 . 1 . 2 . 4 Treads 49 | 2 5 . 10 . 2 3 13 . . . . . . . 1 . . . . . . 1 1 2 1 . . 1 . 1 . 2 . 4 Leg 4 | . . . . . . . . . . . . . . . . . . 1 . . 2 . . . . . . 1 . . . . . . Wheel 16 | 1 3 . . . . . 4 . . . . . 2 . . 2 . 2 . . 2 . . . . . . . . . . . . . Hover . | . . . . . . . . . . . . . . . . . . . . . . . . . . . . . . . . . . . Flight . | . . . . . . . . . . . . . . . . . . . . . . . . . . . . . . . . . . . Utility 382 | 1 3 . 11 3 2 . 8 8 1 5 1 14 28 23 14 1 14 34 10 4 3 8 55 3 18 3 5 3 10 10 23 18 28 10 Device 285 | . . . 2 1 1 . 4 4 . 5 . 12 18 19 9 1 11 29 7 4 2 6 48 2 13 3 5 2 8 7 16 18 24 4 Storage 26 | 1 3 . 3 . 1 . . 1 . . . 1 4 . . . . 2 . . . . 2 . 1 . . 1 . 1 1 . 1 3 Processor 2 | . . . . . . . . 1 . . . . . . . . . . . . . . . . . . . . . . . . 1 . Hackware 2 | . . . . . . . . . . . . . 1 . . . . . . . . . . . . . . . . 1 . . . . Protection 66 | . . . 6 2 . . 4 2 1 . 1 1 5 4 5 . 3 3 3 . 1 2 5 1 4 . . . 2 1 5 . 2 3 Artifact 1 | . . . . . . . . . . . . . . . . . . . . . . . . . . . . . . . 1 . . . Weapon 231 | 3 8 9 18 . 1 3 24 1 4 5 1 7 17 8 5 . 3 11 5 3 2 3 22 3 11 1 2 3 4 1 10 4 12 17 Energy Gun 33 | 2 3 3 3 . . . 2 . . . . . 1 4 3 . 1 5 . 1 1 . 2 . 1 . . . . . 1 . . . Energy Cannon 105 | . . . 3 . . 2 7 . . . . 2 11 2 . . . 1 3 . 1 3 15 1 8 1 . 2 2 1 8 4 11 17 Ballistic Gun 22 | 1 3 3 2 . . . 2 . 1 2 1 2 . . 1 . 1 . . . . . 3 . . . . . . . . . . . Ballistic Cannon 14 | . . . 6 . . . 6 . . 1 . . . . . . . . . . . . . . 1 . . . . . . . . . Launcher 24 | . 2 3 3 . . 1 1 . 2 . . 1 2 1 1 . . . . . . . 2 . 1 . 1 . 2 . . . 1 . Special Weapon 4 | . . . . . . . . . . . . . . . . . . 2 . 1 . . . . . . . 1 . . . . . . Impact Weapon 3 | . . . 1 . 1 . . . . . . . . . . . . . . . . . . . . . . . . . 1 . . . Slashing Weapon 26 | . . . . . . . 6 1 1 2 . 2 3 1 . . 1 3 2 1 . . . 2 . . 1 . . . . . . . Piercing Weapon . | . . . . . . . . . . . . . . . . . . . . . . . . . . . . . . . . . . . Special Melee Weapon . | . . . . . . . . . . . . . . . . . . . . . . . . . . . . . . . . . . . Unidentified Prototypes 27 | . . . 1 . . . . . . 1 . 1 2 . 6 . . 2 . . 3 . . 1 . . . 4 . 1 5 . . . Parts Lost 57 | . 2 3 1 1 . 1 2 . . . . . 3 2 . . . . . . . 2 4 . . . . . 2 . . 1 . 33 Power 4 | . . 1 . . . . . . . . . . . . . . . . . . . . . . . . . . . . . . . 3 Propulsion 8 | . 1 . . . . . . . . . . . 2 . . . . . . . . . . . . . . . 1 . . . . 4 Utility 27 | . . . . 1 . . . . . . . . 1 1 . . . . . . . . 4 . . . . . 1 . . . . 19 Weapon 18 | . 1 2 1 . . 1 2 . . . . . . 1 . . . . . . . 2 . . . . . . . . . 1 . 7 Highest Loss Streak 28 | . 1 1 1 1 . 1 1 . . . . . 2 1 . . . . . . . 1 2 . . . . . 1 . . 1 . 28 Average Slot Usage (%) 92 | . 98 99 99 100 96 88 89 92 92 91 92 92 92 89 82 92 92 99 99 100 100 96 90 88 84 85 85 84 90 89 85 90 85 80 Engine 4 | . 14 14 11 11 11 11 2 . . 5 7 4 11 12 4 . . . . . . . . . . . . . . . . . . . Reactor 5 | . . . . . . . . . . . . . . . 7 12 12 10 11 11 11 11 9 10 10 10 10 9 10 9 9 8 7 6 Treads 9 | . 26 28 22 22 22 22 17 . . . . . . . 5 . . . . . . 2 9 10 9 10 10 9 7 9 9 8 7 6 Wheel 4 | . 1 . . . . . . 15 15 14 14 14 11 12 1 10 12 11 11 11 10 5 . . . . . . . . . . . . Device 16 | . . . 7 . 1 11 17 20 14 19 21 13 15 11 12 18 19 21 21 22 32 18 23 21 18 20 20 19 23 22 20 28 24 19 Storage 19 | . 26 28 25 33 30 22 18 15 15 14 14 14 12 12 12 12 12 16 16 16 16 16 18 20 20 20 20 20 20 18 18 20 19 22 Processor 3 | . . . . . . . . 1 7 7 7 7 6 6 6 6 6 5 5 5 5 5 5 5 5 5 5 5 5 4 4 4 6 6 Hackware 1 | . . . . . . . . . . . . . 2 6 6 6 6 5 5 5 5 5 . . . . . . . 3 4 4 3 . Protection 7 | . . . 10 10 8 . 9 15 15 8 7 14 11 8 6 6 5 11 10 10 . 13 9 6 6 5 5 5 8 9 5 4 3 4 Energy Gun 2 | . 13 14 1 . . . . . . . . . . 7 5 12 6 9 3 . 5 1 . . . . . . . . . . . . Energy Cannon 7 | . . . 8 11 2 6 7 7 7 1 . 3 12 9 6 6 6 1 7 10 . 8 9 10 9 10 10 9 8 9 8 7 6 6 Ballistic Gun 1 | . 13 8 1 . . . 2 6 . 9 7 8 1 . 3 . . . . . . . . . . . . . . . . . . . Ballistic Cannon 2 | . . . 10 11 11 11 6 . . 5 7 7 1 . . . . . . . . . . . . . . . . . . . . . Slashing Weapon 2 | . . . . . . . 1 . 6 3 7 1 2 . . . 5 4 4 5 5 5 5 4 5 5 4 5 5 4 4 4 3 2 Naked Turns . | . . . . . . . . . . . . . . . . . . . . . . . . . . . . . . . . . . . Heaviest Build 325 | 13 74 75 121 121 160 131 142 145 148 148 147 157 174 172 184 178 181 179 192 190 164 185 225 247 265 242 243 240 236 239 294 281 325 321 Greatest Support 150 | 40 40 40 40 40 40 40 40 24 24 24 24 24 24 24 80 24 24 24 24 24 50 80 110 110 110 105 105 105 105 150 150 150 150 150 Greatest Overweight (x) 14 | . 4 1 3 3 3 3 5 6 6 6 6 6 7 7 6 7 7 14 7 7 13 7 2 7 2 2 2 3 2 1 1 3 2 2 Average Overweight (x) 3 | . 1 1 2 2 2 3 3 5 5 5 6 6 6 6 2 7 7 6 7 6 6 4 1 1 1 2 2 2 1 1 1 1 1 1 Largest Inventory Capacity 52 | 6 20 20 28 28 40 32 32 52 32 32 32 32 52 32 32 32 32 48 28 28 28 28 36 36 44 36 36 36 36 36 44 44 44 44 Average Capacity 31 | 5 18 20 22 28 29 32 32 32 32 32 32 32 32 32 32 32 32 28 28 28 28 28 33 36 36 36 36 36 36 36 37 44 44 43 Most Carried 44 | 6 20 20 28 28 32 32 32 32 32 32 32 32 32 32 32 32 32 32 28 28 28 28 36 36 37 36 36 36 36 36 44 44 44 44 Average Carried 31 | 4 15 19 22 27 28 31 31 31 31 31 32 31 31 31 31 31 31 27 28 28 27 27 32 35 35 36 35 35 35 35 37 43 43 41 Final Capacity 44 | 6 20 20 28 28 32 32 32 32 32 32 32 32 32 32 32 32 32 28 28 28 28 28 36 36 36 36 36 36 36 36 44 44 44 20 Final Carried 44 | 6 20 19 28 28 32 31 32 32 32 32 32 32 32 32 32 32 32 28 28 28 28 28 36 36 36 36 36 36 36 36 44 44 44 20 Class Distribution -------------------- 79% | Hauler-Mutant 11% | Scavenger-Mutant 6% | Hauler-Tank Dominant Class ---------------- Hauler-Mutant | -10/Materials Hauler-Mutant | -10/Mines Hauler-Mutant | -9/Materials Hauler-Mutant | -9/Mines Hauler-Mutant | -9/Exiles Hauler-Mutant | -8/Mines Hauler-Mutant | -8/Materials Hauler-Mutant | -7/Factory Hauler-Mutant | -7/Lower Caves Hauler-Tank | -7/Lower Caves Hauler-Mutant | -7/Data Miner Hauler-Tank | -6/Proximity Caves Hauler-Mutant | -6/Factory Hauler-Tank | -6/Extension Hauler-Mutant | -6/Cetus Hauler-Skirmisher | -6/Archives Hauler-Mutant | -6/Hub_04(d) Scavenger-Mutant | -5/Factory Scavenger-Mutant | -5/Upper Caves Scavenger-Mutant | -5/Upper Caves Hauler-Mutant | -5/Warlord Scavenger-Mutant | -4/Proximity Caves Hauler-Mutant | -4/Factory Hauler-Mutant | -4/Waste Hauler-Mutant | -4/Factory Hauler-Mutant | -4/Upper Caves Hauler-Mutant | -4/Upper Caves Hauler-Mutant | -4/Zhirov Hauler-Mutant | -3/Proximity Caves Hauler-Mutant | -3/Research Hauler-Mutant | -3/Quarantine Hauler-Mutant | -2/Research Hauler-Mutant | -1/Access Hauler-Mutant | -1/Command Resources | -11 -10 -10 -9 -9 -9 -8 -8 -7 -7 -7 -7 -6 -6 -6 -6 -6 -6 -5 -5 -5 -5 -4 -4 -4 -4 -4 -4 -4 -3 -3 -3 -2 -1 -1 ----------- Run | Scr Mat Min Mat Min Exi Min Mat Fac Low Low Dat Pro Fac Ext Cet Arc Hub Fac Upp Upp War Pro Fac Was Fac Upp Upp Zhi Pro Res Qua Res Acc Com Matter Collected 10078 | 226 735 275 1112 113 . 189 1011 84 59 252 . 410 660 435 269 . 255 477 190 58 122 100 844 130 355 40 85 120 182 140 290 305 377 178 Remotely . | . . . . . . . . . . . . . . . . . . . . . . . . . . . . . . . . . . . Salvage Created 18305 | . 612 278 1591 458 . 243 1990 204 39 192 . 443 1107 508 106 . 228 885 301 90 . 595 1737 . 1204 133 57 423 740 240 458 682 1707 1054 Parts 846 | . 44 15 108 18 . 11 106 5 2 6 . 20 63 24 7 . 10 50 7 1 . 24 80 . 42 6 3 7 21 8 20 16 74 48 Haulers Intercepted 18 | . 2 . 5 . . . 6 2 . . . . . . . . . 1 . . . . 1 . . . . . . . . . 1 . Recyclers Shooed 13 | . 1 . 4 . . . 3 . . . . . 2 1 . . . . . . . . 2 . . . . . . . . . . . Parts Field Recycled . | . . . . . . . . . . . . . . . . . . . . . . . . . . . . . . . . . . . Retrieved Matter . | . . . . . . . . . . . . . . . . . . . . . . . . . . . . . . . . . . . Parts Self-Destructed 127 | . . . . . . . . . 2 . . 9 . . . . . . 4 8 65 11 . . . 2 16 6 4 . . . . . Prevented 69 | . . . . . . . . . . . . 10 . . . . . . 3 2 11 13 . . . 4 9 . 17 . . . . . Kills | -11 -10 -10 -9 -9 -9 -8 -8 -7 -7 -7 -7 -6 -6 -6 -6 -6 -6 -5 -5 -5 -5 -4 -4 -4 -4 -4 -4 -4 -3 -3 -3 -2 -1 -1 ------- Run | Scr Mat Min Mat Min Exi Min Mat Fac Low Low Dat Pro Fac Ext Cet Arc Hub Fac Upp Upp War Pro Fac Was Fac Upp Upp Zhi Pro Res Qua Res Acc Com Combat Hostiles Destroyed 287 | . 19 14 38 6 . 6 41 . 2 4 . 10 17 6 2 . . 12 4 1 . 9 27 . 10 3 2 . 10 2 6 8 16 12 Guns 49 | . 15 4 8 . . . 1 . . 2 . . 2 1 1 . . 8 1 . . 1 5 . . . . . . . . . . . Cannons 153 | . . . 22 6 . 4 36 . 1 2 . 9 8 1 . . . 2 1 1 . 6 12 . 5 2 . . 5 1 6 3 13 7 AOE 49 | . 4 10 8 . . 2 4 . 1 . . 1 5 . 1 . . . . . . . 5 . 1 . 2 . 3 . . . . 2 Classes Destroyed 17 | . 4 1 4 2 . 1 2 . . . . 1 1 . . . . . . . . . . . . . . . 1 . . . . . Worker 9 | . . . . 1 . 1 1 . . . . . . . . . 1 1 . . . . . . 1 . . . . . . . . 3 Builder 8 | . . . 1 . . . 1 . . . . . 4 . . . . . . . . . 1 . 1 . . . . . . . . . Tunneler 1 | . . . . 1 . . . . . . . . . . . . . . . . . . . . . . . . . . . . . . Hauler 18 | . 2 . 5 . . . 6 2 . . . . . . . . . 1 . . . . 1 . . . . . . . . . 1 . Recycler 16 | . . . 2 2 . . 3 1 . . . . 1 . . . 1 . . . . . 1 . 3 . . . . . . . 1 1 Operator 2 | . . . . . . . 1 . . . . . . . . . . . . . . . 1 . . . . . . . . . . . Drone 1 | . . . . . . . . . . . . . . . . . . . . . . . . . . . . . 1 . . . . . Watcher 31 | . 2 . 4 . . . 4 . . . . . 2 2 . . . 4 . . . . 2 . 1 . . . . 1 2 1 4 2 Swarmer 64 | . 9 1 14 . . . 13 . 2 . . 4 4 . . . . 2 . . . 2 6 . . 2 2 . 2 . . 1 . . Grunt 97 | . 10 7 14 5 . 5 16 . . . . 2 6 3 . . . 1 3 . . 2 5 . 3 . . . 7 1 . 1 2 4 Brawler 3 | . . . 1 1 . . . . . . . . 1 . . . . . . . . . . . . . . . . . . . . . Duelist 4 | . . . . . . 1 1 . . . . 1 . . . . . . . . . . . . . . . . 1 . . . . . Sentry 35 | . . . 9 . . . 9 . . . . . 1 2 . . . 2 1 1 . 1 2 . . 1 . . . 1 . 4 . 1 Hunter 21 | . . . . . . . 2 . . . . 2 2 . . . . 1 . . . 4 2 . 2 . . . . . . 1 5 . Programmer 48 | . . . . . . . . . . . . . 3 . 1 . . 6 . . . . 12 . 5 . . . . . 6 1 9 5 Behemoth 2 | . . . . . . . . . . . . 1 . 1 . . . . . . . . . . . . . . . . . . . . Cetus Guard 1 | . . . . . . . . . . . . . . . 1 . . . . . . . . . . . . . . . . . . . Enhanced Grunt 1 | . . . . . . . . . . . . . . . . . 1 . . . . . . . . . . . . . . . . . Combat Programmer 2 | . . . . . . . . . . . . . . . . . . . . . . . . . . . . . . . . . . 2 Assembled 6 | . . 6 . . . . . . . . . . . . . . . . . . . . . . . . . . . . . . . . Thug 4 | . . . . . . . . . . 4 . . . . . . . . . . . . . . . . . . . . . . . . Best Kill Streak 9 | . 4 4 7 3 . 3 4 1 2 4 . 4 8 2 1 . 2 2 3 1 . 5 6 . 7 2 2 . 4 1 3 2 3 9 Combat Bots Only 7 | . 4 4 7 3 . 3 4 . 2 4 . 4 7 2 1 . . 2 3 1 . 5 5 . 5 2 2 . 4 1 3 2 2 5 Max Kills in Single Turn 5 | . 1 1 2 1 . 2 4 1 1 1 . 2 4 1 1 . 3 1 1 1 . 1 3 . 2 1 1 . 2 1 1 1 1 5 Gunslinging . | . . . . . . . . . . . . . . . . . . . . . . . . . . . . . . . . . . . Exploded 4 | . 1 1 2 . . 2 4 . 1 . . 1 4 . 1 . . . . . . . 3 . 1 . 1 . 2 . . . . 2 Melee . | . . . . . . . . . . . . . . . . . . . . . . . . . . . . . . . . . . . Uniques/NPCs Destroyed . | . . . . . . . . . . . . . . . . . . . . . . . . . . . . . . . . . . . Combat | -11 -10 -10 -9 -9 -9 -8 -8 -7 -7 -7 -7 -6 -6 -6 -6 -6 -6 -5 -5 -5 -5 -4 -4 -4 -4 -4 -4 -4 -3 -3 -3 -2 -1 -1 -------- Run | Scr Mat Min Mat Min Exi Min Mat Fac Low Low Dat Pro Fac Ext Cet Arc Hub Fac Upp Upp War Pro Fac Was Fac Upp Upp Zhi Pro Res Qua Res Acc Com Damage Taken 22279 | . 553 383 1431 250 . 473 1359 33 185 201 . 871 1168 681 153 . 91 605 171 75 243 1217 1461 . 734 178 71 . 718 44 100 335 398 8097 Core 2569 | . 87 35 156 39 . 112 117 . 13 32 . 115 147 37 14 . 7 71 11 . 16 76 29 . 2 . . . 54 . 8 16 37 1338 Absorbed by Shields 2711 | . . . . . . . . . . 74 . . 327 228 67 . 35 147 . 27 . . 598 . 59 . . . . 42 33 318 332 424 Reduced by Siege Mode 250 | . . . . . . . . . . . . . . . . . . . . . . 27 24 . . . . . . . . . . 199 Core Remaining (%) 76 | 100 . 51 . . . 23 78 . . . . 77 . . . . 75 . . . . 82 . . . . . . 92 . 92 98 . . Volleys Fired 956 | . 81 35 117 29 . 18 136 7 6 9 . 27 60 24 9 . 11 44 9 3 . 21 72 . 38 13 3 . 21 6 27 33 48 49 Largest 3 | . 2 2 2 2 . 2 2 2 1 3 . 3 3 3 3 . 2 2 2 2 . 2 2 . 2 2 1 . 2 2 2 2 2 2 Hottest 300 | . 70 105 107 107 . 107 136 91 63 100 . 170 235 198 203 . 123 275 176 176 . 186 208 . 211 194 39 . 194 175 175 208 240 300 Shots Fired 1740 | . 154 46 209 51 . 34 254 8 6 27 . 64 105 69 19 . 14 86 18 6 . 42 133 . 50 21 3 . 31 11 53 56 89 81 Gun 449 | . 148 22 55 . . . 13 1 1 18 . 12 21 30 10 . 11 75 4 . . 2 26 . . . . . . . . . . . Cannon 1205 | . . . 142 51 . 32 240 7 4 9 . 50 74 39 6 . 3 10 14 6 . 40 105 . 41 21 . . 21 11 53 56 89 81 Launcher 85 | . 6 24 12 . . 2 1 . 1 . . 2 10 . 3 . . . . . . . 2 . 9 . 3 . 10 . . . . . Special 1 | . . . . . . . . . . . . . . . . . . 1 . . . . . . . . . . . . . . . . Kinetic 471 | . 77 10 129 22 . 16 107 1 1 27 . 32 30 . 2 . 1 . . . . . 16 . . . . . . . . . . . Thermal 713 | . 34 5 44 29 . 16 139 . . . . . 42 . 2 . 7 61 4 . . 21 84 . 28 8 . . 10 . 51 10 53 65 Explosive 48 | . 6 24 12 . . 2 1 . 1 . . 2 . . . . . . . . . . . . . . . . . . . . . . Electromagnetic 505 | . 37 7 24 . . . 7 7 4 . . 30 33 69 15 . 6 24 14 6 . 21 33 . 22 13 3 . 21 11 2 46 36 14 Entropic 2 | . . . . . . . . . . . . . . . . . . . . . . . . . . . . . . . . . . 2 Robot Hit Streak 19 | . 11 10 14 7 . 9 15 5 9 19 . 7 12 13 6 . 3 7 10 2 . 15 15 . 9 11 3 . 10 13 16 17 12 16 Robot Miss Streak 6 | . 4 1 5 3 . 5 6 1 . 1 . 4 3 4 1 . 3 5 1 2 . 2 5 . 2 3 1 . 1 1 2 3 4 2 Penetration Max 1 | . . . . . . . 1 . . . . 1 . . . . . . . . . . . . . . . . . . . . . . Secondary Targets . | . . . . . . . . . . . . . . . . . . . . . . . . . . . . . . . . . . . Capacitor 10 | . . . . . . . . . . . . . . . . . . . . . . . . . . . . . . . . . . 10 Shots Hit Robots 1179 | . 102 30 126 33 . 21 170 6 4 18 . 36 69 47 13 . 3 55 14 3 . 32 100 1 36 13 2 9 23 8 38 41 64 62 Core Hits 584 | . 39 29 62 13 . 13 90 3 2 8 . 20 40 16 12 . 6 23 4 2 . 13 51 . 24 3 3 6 20 3 15 13 30 21 Critical Hits 63 | . . . 6 3 . 2 23 . . . . . 1 . 1 . . 1 . . . . 3 . 1 . . . 1 . . 1 7 13 Critical Kills 24 | . . . 2 1 . 2 12 . . . . . . . 1 . . . . . . . 1 . 1 . . . . . . . 3 1 Critical Parts Destroyed 31 | . . . 4 2 . . 11 . . . . . 1 . . . . 1 . . . . 2 . . . . . 1 . . . 4 5 Melee Attacks 537 | . . . 1 . 14 . 18 3 16 6 . 21 33 . . . 30 57 1 . 7 26 50 1 19 32 10 9 19 21 44 56 29 14 Impact 15 | . . . 1 . 14 . . . . . . . . . . . . . . . . . . . . . . . . . . . . . Slashing 522 | . . . . . . . 18 3 16 6 . 21 33 . . . 30 57 1 . 7 26 50 1 19 32 10 9 19 21 44 56 29 14 Piercing . | . . . . . . . . . . . . . . . . . . . . . . . . . . . . . . . . . . . Sneak Attacks 8 | . . . . . . . . . . . . . 1 . . . . . . . . . 5 . 2 . . . . . . . . . Combat Hostiles . | . . . . . . . . . . . . . . . . . . . . . . . . . . . . . . . . . . . Follow-up Attacks . | . . . . . . . . . . . . . . . . . . . . . . . . . . . . . . . . . . . Damage Inflicted 42877 | . 1624 994 2857 706 . 581 3990 200 176 541 . 1158 2853 1339 486 . 354 1839 622 160 . 1094 4990 159 2248 438 92 1027 1314 311 1640 1570 2988 4526 Guns 6198 | . 1231 247 600 . . . 270 . . 267 . 194 390 466 191 . 21 1575 137 . . 68 541 . . . . . . . . . . . Cannons 26999 | . . . 1534 677 . 344 3471 162 67 274 . 673 1407 720 117 . 23 231 485 160 . 1026 2880 . 1126 392 . . 630 311 1640 1570 2988 4091 Explosions 7236 | . 393 747 705 . . 237 249 38 109 . . 291 951 153 178 . 310 33 . . . . 760 . 879 46 92 . 684 . . . . 381 Melee 2397 | . . . . . . . . . . . . . 105 . . . . . . . . . 809 159 243 . . 1027 . . . . . 54 Ramming 47 | . . . 18 29 . . . . . . . . . . . . . . . . . . . . . . . . . . . . . . Kinetic 5661 | . 564 116 1277 307 . 180 1336 . . 541 . 430 562 . 59 . . . . . . . 289 . . . . . . . . . . . Thermal 18962 | . 284 104 611 370 . 164 2242 38 . . . 132 967 153 19 . . 1543 137 . . 562 2302 . 971 204 . . 320 . 1578 413 1883 3965 Explosive 3387 | . 393 719 705 . . 237 249 . 109 . . 159 282 . . . . . . . . . 534 . . . . . . . . . . . Electromagnetic 12343 | . 383 55 246 . . . 163 162 67 . . 437 937 1186 408 . 354 296 485 160 . 532 1056 . 1034 234 92 . 994 311 62 1157 1105 427 Impact . | . . . . . . . . . . . . . . . . . . . . . . . . . . . . . . . . . . . Slashing 2397 | . . . . . . . . . . . . . 105 . . . . . . . . . 809 159 243 . . 1027 . . . . . 54 Piercing . | . . . . . . . . . . . . . . . . . . . . . . . . . . . . . . . . . . . Entropic 80 | . . . . . . . . . . . . . . . . . . . . . . . . . . . . . . . . . . 80 Highest Corruption 7 | . . . . . . . 1 . . . . . 3 4 4 4 4 . . . . . 2 . . . . . . . 2 1 1 7 Average Corruption 2 | . . . . . . . 1 . . . . . 1 3 4 4 2 . . . . . 1 . . . . . . . 1 1 1 2 Corruption Purged 15 | . . . . . . . . . . . . . . . . . 3 . . . . . 6 . . . . . . . 2 1 1 2 Effects 122 | . . . . . . . 2 . . . . . 10 43 15 2 15 . . . . . 15 . . . . . . . 8 . 2 10 Message Errors 35 | . . . . . . . 1 . . . . . 6 11 4 . 5 . . . . . 4 . . . . . . . 3 . . 1 Matter Fused 22 | . . . . . . . . . . . . . 1 12 2 1 5 . . . . . . . . . . . . . . . . 1 Heat Flow Errors 7 | . . . . . . . . . . . . . . 1 . . 2 . . . . . 3 . . . . . . . . . . 1 Energy Discharges 23 | . . . . . . . . . . . . . . 5 4 1 2 . . . . . 6 . . . . . . . 2 . 1 2 Data Loss (minor) 23 | . . . . . . . . . . . . . . 12 4 . 1 . . . . . 2 . . . . . . . 3 . 1 . Misfires 1 | . . . . . . . . . . . . . . . . . . . . . . . . . . . . . . . . . . 1 Targeting Errors 8 | . . . . . . . 1 . . . . . 3 1 1 . . . . . . . . . . . . . . . . . . 2 Weapon Failures 3 | . . . . . . . . . . . . . . 1 . . . . . . . . . . . . . . . . . . . 2 Overload Shots 1 | . . . . . . . . . . . . . . . . . . 1 . . . . . . . . . . . . . . . . Overflow Damage 1573 | . 13 17 73 20 . . 47 . . 3 . . 141 35 . . 5 13 65 . . 15 446 . 173 60 . 145 22 . 22 59 174 25 Projectiles 839 | . . . 11 20 . . 38 . . 3 . . 58 35 . . . 13 65 . . 15 134 . 114 31 . . 22 . 22 59 174 25 Explosions 246 | . 13 17 62 . . . 9 . . . . . 48 . . . 5 . . . . . 4 . 59 29 . . . . . . . . Melee 488 | . . . . . . . . . . . . . 35 . . . . . . . . . 308 . . . . 145 . . . . . . Knockbacks 37 | . . . 5 6 . . 19 . . . . 3 4 . . . . . . . . . . . . . . . . . . . . . Impact . | . . . . . . . . . . . . . . . . . . . . . . . . . . . . . . . . . . . Kinetic 35 | . . . 5 5 . . 19 . . . . 2 4 . . . . . . . . . . . . . . . . . . . . . Secondary 2 | . . . . 1 . . . . . . . 1 . . . . . . . . . . . . . . . . . . . . . . Self-Inflicted Damage 368 | . . 47 23 . . . . 6 33 . . . . 44 12 . 72 . . . . . . . 4 . . . 31 . . . . 96 Shots 22 | . . 3 1 . . . . 1 1 . . . . 1 1 . 1 . . . . . . . 4 . . . 8 . . . . 1 Rammed 2 | . . . 1 1 . . . . . . . . . . . . . . . . . . . . . . . . . . . . . . Targets Rammed 2 | . . . 1 1 . . . . . . . . . . . . . . . . . . . . . . . . . . . . . . Kicked . | . . . . . . . . . . . . . . . . . . . . . . . . . . . . . . . . . . . Crushed . | . . . . . . . . . . . . . . . . . . . . . . . . . . . . . . . . . . . Highest Temperature 1916 | . 54 66 308 267 . 90 231 30 . 25 . 36 243 218 84 . 141 180 102 . . . 281 . 120 2 . . . 16 96 . 258 1916 Average Temperature 92 | . 20 19 30 95 . 33 51 12 . 12 . 14 106 74 32 . 43 47 41 . . . 90 . 49 2 . . . 10 42 . 92 460 Received Heat Transfer 3353 | . 183 146 396 138 . 180 585 . . 78 . 132 354 171 12 . 12 27 78 12 21 36 148 . 150 18 . . 153 10 . 36 4 273 Effects 37 | . . . . 1 . . . . . . . . . . . . . . . . . . 1 . . . . . . . . . . 35 Shutdowns 8 | . . . . . . . . . . . . . . . . . . . . . . . . . . . . . . . . . . 8 Energy Bleed 3 | . . . . . . . . . . . . . . . . . . . . . . . 1 . . . . . . . . . . 2 Interference 3 | . . . . 1 . . . . . . . . . . . . . . . . . . . . . . . . . . . . . 2 Matter Decay 4 | . . . . . . . . . . . . . . . . . . . . . . . . . . . . . . . . . . 4 Short Circuit 5 | . . . . . . . . . . . . . . . . . . . . . . . . . . . . . . . . . . 5 Damage (minor) 5 | . . . . . . . . . . . . . . . . . . . . . . . . . . . . . . . . . . 5 Damage (major) 8 | . . . . . . . . . . . . . . . . . . . . . . . . . . . . . . . . . . 8 Damage (core) 1 | . . . . . . . . . . . . . . . . . . . . . . . . . . . . . . . . . . 1 Siege Activations 8 | . . . . . . . . . . . . . . . . . . . . . . 1 5 . . . . . . . . . . 2 Total Turns 192 | . . . . . . . . . . . . . . . . . . . . . . 24 128 . . . . . . . . . . 40 Longest Duration 38 | . . . . . . . . . . . . . . . . . . . . . . 24 38 . . . . . . . . . . 20 Robots Corrupted 36 | . . . . . . . . . . . . . 3 4 . . . 1 2 . . 2 4 . 4 1 . . 2 1 . 5 5 2 Combat Hostiles 33 | . . . . . . . . . . . . . 2 4 . . . 1 2 . . 2 4 . 4 1 . . 2 1 . 5 3 2 Parts Fried 101 | . 1 . . . . . . 2 . . . 1 10 3 . . 2 4 6 4 . 4 8 . 8 1 . . 14 3 1 11 12 6 Impact Corruptions . | . . . . . . . . . . . . . . . . . . . . . . . . . . . . . . . . . . . Robots Melted 3 | . . . . . . . . . . . . . . . . . . 1 . . . . 1 . . . . . . . . . . 1 Combat Hostiles 3 | . . . . . . . . . . . . . . . . . . 1 . . . . 1 . . . . . . . . . . 1 Parts Melted 64 | . . . 3 . . 1 4 . . . . . 1 . . . . 11 . . . . 4 . 8 . . . . . 6 5 13 8 Heat Transferred 20520 | . 851 235 1110 666 . 296 4106 50 . . . 100 1550 125 37 . . 1695 148 . . 824 2496 . 1009 198 . . 296 . 1470 296 1547 1415 Parts Sabotaged . | . . . . . . . . . . . . . . . . . . . . . . . . . . . . . . . . . . . Parts Stolen . | . . . . . . . . . . . . . . . . . . . . . . . . . . . . . . . . . . . Parts Stripped . | . . . . . . . . . . . . . . . . . . . . . . . . . . . . . . . . . . . Power Chain Reactions 15 | . . 1 . . . . . 1 . . . 2 4 2 . . . 1 . . . . . . 1 1 . . . . . . 1 1 Missiles Intercepted . | . . . . . . . . . . . . . . . . . . . . . . . . . . . . . . . . . . . Alert | -11 -10 -10 -9 -9 -9 -8 -8 -7 -7 -7 -7 -6 -6 -6 -6 -6 -6 -5 -5 -5 -5 -4 -4 -4 -4 -4 -4 -4 -3 -3 -3 -2 -1 -1 ------- Run | Scr Mat Min Mat Min Exi Min Mat Fac Low Low Dat Pro Fac Ext Cet Arc Hub Fac Upp Upp War Pro Fac Was Fac Upp Upp Zhi Pro Res Qua Res Acc Com Peak Influence 833 | . 238 100 540 264 . 88 577 161 . . . . 315 614 833 589 226 273 . . . . 550 192 586 . . . . 121 273 242 407 243 Average Influence 159 | . 103 42 186 107 . 33 280 86 . . . . 66 134 467 412 103 127 . . . . 216 91 417 . . . . 30 86 79 196 131 Maximum Alert Level 3 | . 1 . 2 1 . . 2 . . . . . 1 2 3 2 1 1 . . . . 2 . 2 . . . . . 1 1 2 1 Low Security (%) 83 | 100 91 100 54 72 . 100 21 100 . . . . 94 76 1 . 85 69 . . . . 42 100 1 . . . . 100 83 99 50 87 Level 1 15 | . 8 . 38 27 . . 60 . . . . . 5 17 14 58 14 30 . . . . 42 . 21 . . . . . 16 . 46 12 Level 2 1 | . . . 7 . . . 18 . . . . . . 6 71 41 . . . . . . 14 . 77 . . . . . . . 3 . Level 3 . | . . . . . . . . . . . . . . . 13 . . . . . . . . . . . . . . . . . . . Level 4 . | . . . . . . . . . . . . . . . . . . . . . . . . . . . . . . . . . . . Level 5 . | . . . . . . . . . . . . . . . . . . . . . . . . . . . . . . . . . . . High Security . | . . . . . . . . . . . . . . . . . . . . . . . . . . . . . . . . . . . Max Security . | . . . . . . . . . . . . . . . . . . . . . . . . . . . . . . . . . . . Squads Dispatched 65 | . 7 . 2 . . . 8 . . . . . 5 1 . . 3 5 . . . . 8 . 6 . . . . 2 4 1 10 3 Investigation 11 | . 4 . 1 . . . 2 . . . . . 1 . . . . . . . . . 1 . . . . . . . 1 . 1 . Extermination 25 | . . . . . . . . . . . . . 3 . . . 1 3 . . . . 6 . 3 . . . . . 3 . 4 2 Reinforcement 20 | . 3 . 1 . . . 2 . . . . . 1 1 . . 2 2 . . . . . . 2 . . . . 2 . 1 2 1 Assault 2 | . . . . . . . . . . . . . . . . . . . . . . . 1 . 1 . . . . . . . . . Garrison 7 | . . . . . . . 4 . . . . . . . . . . . . . . . . . . . . . . . . . 3 . Intercept . | . . . . . . . . . . . . . . . . . . . . . . . . . . . . . . . . . . . Construction Impeded 3 | . . . . . . . 1 . . . . . 1 1 . . . . . . . . . . . . . . . . . . . . Haulers Reinforced 4 | . . . . . . . . . . . . . . . . . . . . . . . . . . . . . . 1 . 1 2 . Stealth | -11 -10 -10 -9 -9 -9 -8 -8 -7 -7 -7 -7 -6 -6 -6 -6 -6 -6 -5 -5 -5 -5 -4 -4 -4 -4 -4 -4 -4 -3 -3 -3 -2 -1 -1 --------- Run | Scr Mat Min Mat Min Exi Min Mat Fac Low Low Dat Pro Fac Ext Cet Arc Hub Fac Upp Upp War Pro Fac Was Fac Upp Upp Zhi Pro Res Qua Res Acc Com Distress Signals 33 | . 2 1 1 . . . 4 . . . . . 1 1 3 . 2 . . . . . . . 3 . . . . 4 . 9 2 . Communications Jammed 39 | . . . . . . . . . . . . . . 8 . . . 2 . . . . 1 . 1 . . . . . . 10 7 10 Distress Signals 38 | . . . . . . . . . . . . . . 8 . . . 1 . . . . 1 . 1 . . . . . . 10 7 10 Times Spotted 529 | . 35 16 49 11 . 6 68 1 3 5 . 12 26 35 29 . 6 24 4 1 9 11 53 . 28 4 1 . 10 5 11 16 24 26 Peak Tracking Total 9 | . 4 2 8 3 . 3 5 1 3 4 . 4 6 6 7 . 4 2 3 1 6 5 8 . 9 2 1 . 4 1 3 4 4 7 Tactical Retreats 39 | . 3 3 1 4 . . 6 . 1 1 . 1 2 3 1 . . . 1 . 1 . 3 . 1 1 . . 1 . . 1 1 3 Traps | -11 -10 -10 -9 -9 -9 -8 -8 -7 -7 -7 -7 -6 -6 -6 -6 -6 -6 -5 -5 -5 -5 -4 -4 -4 -4 -4 -4 -4 -3 -3 -3 -2 -1 -1 ------- Run | Scr Mat Min Mat Min Exi Min Mat Fac Low Low Dat Pro Fac Ext Cet Arc Hub Fac Upp Upp War Pro Fac Was Fac Upp Upp Zhi Pro Res Qua Res Acc Com Traps Triggered 16 | . 2 . 1 . . . 2 1 . . . . 1 2 . . . . . . . . 2 . 2 . . . . . 2 . . 1 Indirectly . | . . . . . . . . . . . . . . . . . . . . . . . . . . . . . . . . . . . Trap Hack Attempts . | . . . . . . . . . . . . . . . . . . . . . . . . . . . . . . . . . . . Triggered . | . . . . . . . . . . . . . . . . . . . . . . . . . . . . . . . . . . . Disarmed 3 | . . . . . . . . . . . . . . . . . . 3 . . . . . . . . . . . . . . . . Reprogrammed . | . . . . . . . . . . . . . . . . . . . . . . . . . . . . . . . . . . . Reused . | . . . . . . . . . . . . . . . . . . . . . . . . . . . . . . . . . . . Traps Extracted . | . . . . . . . . . . . . . . . . . . . . . . . . . . . . . . . . . . . Installed . | . . . . . . . . . . . . . . . . . . . . . . . . . . . . . . . . . . . Triggered 25 | . . . . . . . . . . . . . 1 . . . . . . 6 9 . . . . 2 7 . . . . . . . Machines | -11 -10 -10 -9 -9 -9 -8 -8 -7 -7 -7 -7 -6 -6 -6 -6 -6 -6 -5 -5 -5 -5 -4 -4 -4 -4 -4 -4 -4 -3 -3 -3 -2 -1 -1 ---------- Run | Scr Mat Min Mat Min Exi Min Mat Fac Low Low Dat Pro Fac Ext Cet Arc Hub Fac Upp Upp War Pro Fac Was Fac Upp Upp Zhi Pro Res Qua Res Acc Com Machines Disabled 60 | . 3 1 2 . . . 7 . . . . . 3 5 . 1 9 4 . . . . 13 . 3 . 1 . . . 7 1 . . Max in Single Turn 8 | . 2 1 1 . . . 1 . . . . . 1 2 . . 8 1 . . . . 4 . 1 . 1 . . . 1 1 . . Garrison Access 9 | . . . . . . . 1 1 . . . . . . . . 1 2 . . . . . . . . . . . . 1 3 . . Network Hub 1 | . . . . . . . . . . . . . . . . . 1 . . . . . . . . . . . . . . . . . Machines Sabotaged . | . . . . . . . . . . . . . . . . . . . . . . . . . . . . . . . . . . . Garrisons Compromised . | . . . . . . . . . . . . . . . . . . . . . . . . . . . . . . . . . . . Overloaded Fab Kills . | . . . . . . . . . . . . . . . . . . . . . . . . . . . . . . . . . . . Fab Network Shutdowns . | . . . . . . . . . . . . . . . . . . . . . . . . . . . . . . . . . . . Hacking | -11 -10 -10 -9 -9 -9 -8 -8 -7 -7 -7 -7 -6 -6 -6 -6 -6 -6 -5 -5 -5 -5 -4 -4 -4 -4 -4 -4 -4 -3 -3 -3 -2 -1 -1 --------- Run | Scr Mat Min Mat Min Exi Min Mat Fac Low Low Dat Pro Fac Ext Cet Arc Hub Fac Upp Upp War Pro Fac Was Fac Upp Upp Zhi Pro Res Qua Res Acc Com Machines Accessed 157 | . 7 . 14 1 1 . 14 5 . . 4 . 12 11 3 . 7 12 1 2 6 . 11 . 7 1 2 8 . 5 14 2 6 1 Terminals 84 | . 5 . 10 1 . . 10 1 . . . . 6 10 3 . 6 6 . . . . 6 . 2 . . . . 1 10 . 6 1 Fabricators 10 | . . . . . . . . 2 . . . . 4 . . . . . . . . . . . 2 . . . . 2 . . . . Repair Stations 13 | . 1 . 2 . . . 2 1 . . . . 1 . . . . 2 . . . . 2 . . . . . . . 2 . . . Recycling Units 9 | . 1 . 1 . . . 1 . . . . . . 1 . . . . . . . . 2 . 2 . . . . 1 . . . . Scanalyzers 7 | . . . 1 . . . . . . . . . . . . . . 1 . . . . 1 . 1 . . . . 1 1 1 . . Garrison Access 9 | . . . . . . . 1 1 . . . . 1 . . . 1 3 . . . . . . . . . . . . 1 1 . . Total Hacks 558 | . 17 . 58 7 1 . 45 12 . . 27 . 36 27 9 . 21 31 1 5 15 . 54 . 34 1 7 44 . 18 54 3 26 5 Successful 353 | . 8 . 42 4 1 . 25 6 . . 27 . 20 17 3 . 10 21 1 5 15 . 22 . 23 1 7 44 . 8 28 2 13 . Failed 203 | . 8 . 16 3 . . 20 6 . . . . 16 10 6 . 11 10 . . . . 32 . 11 . . . . 10 26 1 12 5 Catastrophic 23 | . . . 1 . . . 3 . . . . . 1 . 2 . 1 3 . . . . 5 . . . . . . 1 1 . 2 3 Database Lockouts 3 | . 2 . . . . . . . . . . . . . . . . . . . . . . . . . . . . . . . 1 . Manual 270 | . 14 . 28 4 . . 28 2 . . . . 17 24 7 . 7 15 . . 1 . 33 . 14 . 1 . . 12 39 . 24 . Terminals 315 | . 15 . 36 7 . . 39 1 . . . . 24 25 9 . 19 19 . . . . 30 . 12 . . . . 8 40 . 26 5 Fabricators 36 | . . . . . . . . 6 . . . . 10 . . . . . . . . . . . 15 . . . . 5 . . . . Repair Stations 46 | . 1 . 13 . . . 3 4 . . . . 1 . . . . 7 . . . . 13 . . . . . . . 4 . . . Recycling Units 22 | . 1 . 4 . . . 2 . . . . . . 2 . . . . . . . . 7 . 4 . . . . 2 . . . . Scanalyzers 21 | . . . 5 . . . . . . . . . . . . . . 1 . . . . 4 . 3 . . . . 3 4 1 . . Garrison Access 17 | . . . . . . . 1 1 . . . . 1 . . . 2 4 . . . . . . . . . . . . 6 2 . . Terminal Hacks 189 | . 5 . 15 3 1 . 10 . . . 27 . 10 8 3 . 5 4 1 5 15 . 5 . 2 1 7 44 . 1 8 . 9 . Record 66 | . . . . . 1 . . . . . 11 . . . 1 . . . . 4 6 . . . . . 6 36 . . 1 . . . Part Schematic 13 | . . . . . . . . . . . 8 . 1 . . . . . . . . . . . . . . 4 . . . . . . Robot Schematic 5 | . . . . . . . . . . . 5 . . . . . . . . . . . . . . . . . . . . . . . Robot Analysis 4 | . . . . . . . . . . . . . . . . . . . . . . . . . . . . 4 . . . . . . Prototype ID Bank 30 | . 3 . 7 1 . . 1 . . . 3 . 1 1 . . 1 1 . . 8 . . . 1 . . . . . . . 2 . Open Door 6 | . . . . . . . . . . . . . . . 1 . . . 1 1 1 . . . . 1 1 . . . . . . . Branch Access Points 3 | . . . . . . . . . . . . . . . . . . 1 . . . . . . . . . . . 1 . . 1 . Alert Level 14 | . 1 . 2 1 . . 1 . . . . . 1 2 . . 1 1 . . . . 1 . . . . . . . 2 . 1 . Unreport Threat 22 | . . . 2 . . . 3 . . . . . 3 3 1 . 2 . . . . . 1 . . . . . . . 3 . 4 . Locate Traps 11 | . . . 1 . . . 3 . . . . . 4 . . . 1 . . . . . 1 . . . . . . . 1 . . . Disarm Traps 1 | . . . . . . . . . . . . . . . . . . 1 . . . . . . . . . . . . . . . . Recall Investigation 3 | . 1 . 1 . . . . . . . . . . . . . . . . . . . . . . . . . . . . . 1 . Recall Extermination 1 | . . . . . . . . . . . . . . . . . . . . . . . . . . . . . . . 1 . . . Recall Reinforcements 1 | . . . . . . . . . . . . . . 1 . . . . . . . . . . . . . . . . . . . . Hauler Manifests 5 | . . . 1 . . . 1 . . . . . . 1 . . . . . . . . 1 . 1 . . . . . . . . . Zone Layout 4 | . . . 1 1 . . 1 . . . . . . . . . . . . . . . 1 . . . . . . . . . . . Fabricator Hacks 17 | . . . . . . . . 4 . . . . 4 . . . . . . . . . . . 8 . . . . 1 . . . . Load Schematic 10 | . . . . . . . . 2 . . . . 4 . . . . . . . . . . . 4 . . . . . . . . . Build 7 | . . . . . . . . 2 . . . . . . . . . . . . . . . . 4 . . . . 1 . . . . Repair Station Hacks 26 | . . . 9 . . . 2 1 . . . . . . . . . 6 . . . . 6 . . . . . . . 2 . . . Scan Component 14 | . . . 5 . . . 1 1 . . . . . . . . . 3 . . . . 3 . . . . . . . 1 . . . Repair 12 | . . . 4 . . . 1 . . . . . . . . . . 3 . . . . 3 . . . . . . . 1 . . . Recycling Unit Hacks 2 | . . . . . . . . . . . . . . . . . . . . . . . 1 . 1 . . . . . . . . . Retrieve Components 2 | . . . . . . . . . . . . . . . . . . . . . . . 1 . 1 . . . . . . . . . Scanalyzer 15 | . . . 4 . . . . . . . . . . . . . . 1 . . . . 2 . 3 . . . . 1 3 1 . . Insert Component 11 | . . . 2 . . . . . . . . . . . . . . 1 . . . . 1 . 2 . . . . 1 3 1 . . Analyze 4 | . . . 2 . . . . . . . . . . . . . . . . . . . 1 . 1 . . . . . . . . . Garrison Access Hacks 6 | . . . . . . . 1 1 . . . . . . . . 1 2 . . . . . . . . . . . . . 1 . . Seal Access 6 | . . . . . . . 1 1 . . . . . . . . 1 2 . . . . . . . . . . . . . 1 . . Unauthorized Hacks 98 | . 3 . 14 1 . . 12 . . . . . 6 9 . . 4 8 . . . . 8 . 9 . . . . 5 15 . 4 . Terminals 82 | . 2 . 10 1 . . 11 . . . . . 6 9 . . 4 8 . . . . 5 . 5 . . . . 3 14 . 4 . Track 35 | . . . 6 1 . . 6 . . . . . 2 3 . . 3 2 . . . . 1 . 1 . . . . 1 7 . 2 . Assimilate 5 | . 1 . . . . . 1 . . . . . . . . . . 2 . . . . . . 1 . . . . . . . . . Botnet 26 | . 1 . 3 . . . 2 . . . . . 3 3 . . 1 3 . . . . 2 . 2 . . . . 1 3 . 2 . Disrupt 7 | . . . . . . . 1 . . . . . . 1 . . . . . . . . 2 . . . . . . . 3 . . . Operators 9 | . . . 1 . . . 1 . . . . . 1 2 . . . 1 . . . . . . 1 . . . . 1 1 . . . Fabricators 5 | . . . . . . . . . . . . . . . . . . . . . . . . . 3 . . . . 2 . . . . Report 1 | . . . . . . . . . . . . . . . . . . . . . . . . . 1 . . . . . . . . . Prioritize 2 | . . . . . . . . . . . . . . . . . . . . . . . . . 1 . . . . 1 . . . . Siphon 2 | . . . . . . . . . . . . . . . . . . . . . . . . . 1 . . . . 1 . . . . Repair Stations . | . . . . . . . . . . . . . . . . . . . . . . . . . . . . . . . . . . . Recycling Units 9 | . 1 . 3 . . . 1 . . . . . . . . . . . . . . . 3 . 1 . . . . . . . . . Reject 4 | . . . 1 . . . . . . . . . . . . . . . . . . . 2 . 1 . . . . . . . . . Recyclers 1 | . . . 1 . . . . . . . . . . . . . . . . . . . . . . . . . . . . . . . Mask 2 | . . . 1 . . . . . . . . . . . . . . . . . . . 1 . . . . . . . . . . . Tunnel 2 | . 1 . . . . . 1 . . . . . . . . . . . . . . . . . . . . . . . . . . . Scanalyzers 1 | . . . 1 . . . . . . . . . . . . . . . . . . . . . . . . . . . . . . . Extract 1 | . . . 1 . . . . . . . . . . . . . . . . . . . . . . . . . . . . . . . Garrison Access 1 | . . . . . . . . . . . . . . . . . . . . . . . . . . . . . . . 1 . . . Jam 1 | . . . . . . . . . . . . . . . . . . . . . . . . . . . . . . . 1 . . . Data Cores Recovered . | . . . . . . . . . . . . . . . . . . . . . . . . . . . . . . . . . . . Used . | . . . . . . . . . . . . . . . . . . . . . . . . . . . . . . . . . . . Hacking Detections 111 | . 5 . 13 . . . 12 4 . . . . 12 10 3 . 7 8 . . . . 9 . 5 . . . . 5 12 . 5 1 Full Trace Events 1 | . . . . . . . . . . . . . . . . . . . . . . . 1 . . . . . . . . . . . Feedback Events 1 | . . . . . . . . . . . . . . . . . . . . . . . 1 . . . . . . . . . . . Hackware Fried 1 | . . . . . . . . . . . . . . . . . . . . . . . 1 . . . . . . . . . . . Feedback Blocked . | . . . . . . . . . . . . . . . . . . . . . . . . . . . . . . . . . . . Robot Schematics Acquired 5 | . . . . . . . . . . . 5 . . . . . . . . . . . . . . . . . . . . . . . Robots Built . | . . . . . . . . . . . . . . . . . . . . . . . . . . . . . . . . . . . Matter . | . . . . . . . . . . . . . . . . . . . . . . . . . . . . . . . . . . . Time . | . . . . . . . . . . . . . . . . . . . . . . . . . . . . . . . . . . . Total Robot Build Rating . | . . . . . . . . . . . . . . . . . . . . . . . . . . . . . . . . . . . Part Schematics Acquired 30 | . . . 16 . . . . . . . 8 . 1 . . . . . . . . . . . 1 . . 4 . . . . . . Parts Built 11 | . . . . . . . . 3 . . . . . . . . . . . . . . . . 6 . . . . 2 . . . . Matter 1676 | . . . . . . . . 409 . . . . . . . . . . . . . . . . 989 . . . . 278 . . . . Time 568 | . . . . . . . . 107 . . . . . . . . . . . . . . . . 392 . . . . 69 . . . . Total Part Build Rating 76 | . . . . . . . . 9 . . . . . . . . . . . . . . . . 49 . . . . 18 . . . . Parts Repaired 11 | . . . 4 . . . 1 . . . . . . . . . . 2 . . . . 3 . . . . . . . 1 . . . Time 631 | . . . 110 . . . 51 . . . . . . . . . . 196 . . . . 238 . . . . . . . 36 . . . Parts Recycled . | . . . . . . . . . . . . . . . . . . . . . . . . . . . . . . . . . . . Recycled Matter . | . . . . . . . . . . . . . . . . . . . . . . . . . . . . . . . . . . . Retrieved Matter . | . . . . . . . . . . . . . . . . . . . . . . . . . . . . . . . . . . . Retrieved Components 19 | . . . . . . . . . . . . . . . . . . . . . . . 9 . 10 . . . . . . . . . Parts Scanalyzed 4 | . . . 2 . . . . . . . . . . . . . . . . . . . 1 . 1 . . . . . . . . . Part Schematics Acquired 3 | . . . 2 . . . . . . . . . . . . . . . . . . . . . 1 . . . . . . . . . Parts Damaged . | . . . . . . . . . . . . . . . . . . . . . . . . . . . . . . . . . . . Bothacking | -11 -10 -10 -9 -9 -9 -8 -8 -7 -7 -7 -7 -6 -6 -6 -6 -6 -6 -5 -5 -5 -5 -4 -4 -4 -4 -4 -4 -4 -3 -3 -3 -2 -1 -1 ------------ Run | Scr Mat Min Mat Min Exi Min Mat Fac Low Low Dat Pro Fac Ext Cet Arc Hub Fac Upp Upp War Pro Fac Was Fac Upp Upp Zhi Pro Res Qua Res Acc Com Used RIF Installer . | . . . . . . . . . . . . . . . . . . . . . . . . . . . . . . . . . . . Robots Hacked 1 | . . . . . . . . . . . . . . . . . . 1 . . . . . . . . . . . . . . . . Non-combat 1 | . . . . . . . . . . . . . . . . . . 1 . . . . . . . . . . . . . . . . Combat . | . . . . . . . . . . . . . . . . . . . . . . . . . . . . . . . . . . . Robot Hacks Applied 1 | . . . . . . . . . . . . . . . . . . 1 . . . . . . . . . . . . . . . . find_chute 1 | . . . . . . . . . . . . . . . . . . 1 . . . . . . . . . . . . . . . . Relay Couplers Released 19 | . . . . . . . . . . . . . . . . . . . . . . . 3 . 3 . . . . . . 13 . . Machine Destruction 3 | . . . . . . . . . . . . . . . . . . . . . . . . . . . . . . . . 3 . . Programmers 16 | . . . . . . . . . . . . . . . . . . . . . . . 3 . 3 . . . . . . 10 . . Robots Rewired 22 | . . . . . . . . . . . . . . 18 . . . . . . 4 . . . . . . . . . . . . . Allies Hacked 3 | . . . . . . . . . . . . . . . . . . . . . . . . . 3 . . . . . . . . . Hacks Repelled . | . . . . . . . . . . . . . . . . . . . . . . . . . . . . . . . . . . . Allies | -11 -10 -10 -9 -9 -9 -8 -8 -7 -7 -7 -7 -6 -6 -6 -6 -6 -6 -5 -5 -5 -5 -4 -4 -4 -4 -4 -4 -4 -3 -3 -3 -2 -1 -1 -------- Run | Scr Mat Min Mat Min Exi Min Mat Fac Low Low Dat Pro Fac Ext Cet Arc Hub Fac Upp Upp War Pro Fac Was Fac Upp Upp Zhi Pro Res Qua Res Acc Com Total Allies 71 | . 1 . . 3 . . 1 . . . . 1 . 27 5 3 . 2 . . 4 . . 20 1 . . . . . . . 3 . Largest Group 20 | . 1 . . 2 1 . 1 . . . . 1 . 20 13 6 3 1 . . 4 . . 20 20 . . . . . . . 3 . Highest-Rated Group 743 | . 10 . . 62 31 . 10 . . . . 94 . 691 634 639 282 75 . . 182 . . 743 743 . . . . . . . 138 . Highest-Rated Ally 156 | . 10 . . 31 31 . 10 . . . . 94 . 156 156 122 94 75 . . 49 . . 46 46 . . . . . . . 46 . Total Orders 22 | . 1 . . . . . 1 . . . . . . 3 3 . 9 3 . . . . . . . . 2 . . . . . . . STAY 3 | . . . . . . . . . . . . . . . 1 . 2 . . . . . . . . . . . . . . . . . GOTO 9 | . 1 . . . . . 1 . . . . . . 1 1 . 3 1 . . . . . . . . 1 . . . . . . . FOLLOW 7 | . . . . . . . . . . . . . . 2 1 . 2 1 . . . . . . . . 1 . . . . . . . EXPLORE 3 | . . . . . . . . . . . . . . . . . 2 1 . . . . . . . . . . . . . . . . Ally Attacks 557 | . . . . 6 . . . . . . . 7 . 190 134 25 24 6 . . 11 . . 5 136 . . . . . . . 13 . Total Damage 14592 | . . . . 82 . . . . . . . 339 . 4270 4061 782 1068 187 . . 314 . . 115 3073 . . . . . . . 301 . Kills 98 | . . . . 3 . . . . . . . 1 . 33 27 6 7 1 . . 1 . . 1 18 . . . . . . . . . Allies Corrupted 3 | . . . . . . . . . . . . . . . . . . . . . . . . . 3 . . . . . . . . . Allies Melted . | . . . . . . . . . . . . . . . . . . . . . . . . . . . . . . . . . . . Intel | -11 -10 -10 -9 -9 -9 -8 -8 -7 -7 -7 -7 -6 -6 -6 -6 -6 -6 -5 -5 -5 -5 -4 -4 -4 -4 -4 -4 -4 -3 -3 -3 -2 -1 -1 ------- Run | Scr Mat Min Mat Min Exi Min Mat Fac Low Low Dat Pro Fac Ext Cet Arc Hub Fac Upp Upp War Pro Fac Was Fac Upp Upp Zhi Pro Res Qua Res Acc Com Robot Analysis Total 4 | . . . . . . . . . . . . . . . . . . . . . . . . . . . . 4 . . . . . . Derelict Logs Recovered 12 | . . 2 . 2 . . . . 1 2 . 1 . . . . . . 1 1 . . . . . 1 1 . . . . . . . Drone Launches 7 | . . . . . . . . . . . . . . . . . 2 2 . . . . . . . . 3 . . . . . . . Drone Recoveries . | . . . . . . . . . . . . . . . . . . . . . . . . . . . . . . . . . . . Exploration | -11 -10 -10 -9 -9 -9 -8 -8 -7 -7 -7 -7 -6 -6 -6 -6 -6 -6 -5 -5 -5 -5 -4 -4 -4 -4 -4 -4 -4 -3 -3 -3 -2 -1 -1 ------------- Run | Scr Mat Min Mat Min Exi Min Mat Fac Low Low Dat Pro Fac Ext Cet Arc Hub Fac Upp Upp War Pro Fac Was Fac Upp Upp Zhi Pro Res Qua Res Acc Com Turns Passed 51666 | 115 1869 1437 4140 1340 770 1242 3412 817 1611 2161 123 1841 1822 1910 708 90 1256 2387 1596 1245 842 1272 3093 834 1920 1413 1091 556 1140 1056 1924 2548 1276 809 Spaces Moved 23516 | 58 861 734 1586 611 351 512 1154 435 724 961 81 1087 915 1015 322 52 615 1028 938 718 492 566 1192 448 745 663 459 267 421 530 912 1249 543 271 Core 6 | 6 . . . . . . . . . . . . . . . . . . . . . . . . . . . . . . . . . . Treads 13885 | 52 740 734 1586 611 351 512 1071 . . . . . . . 291 . . . . . . 237 1192 448 745 663 459 267 421 530 912 1249 543 271 Legs 2 | . . . . . . . . . . . . . . . . . . . . . 2 . . . . . . . . . . . . . Wheels 9623 | . 121 . . . . . 83 435 724 961 81 1087 915 1015 31 52 615 1028 938 718 490 329 . . . . . . . . . . . . Hover . | . . . . . . . . . . . . . . . . . . . . . . . . . . . . . . . . . . . Flight . | . . . . . . . . . . . . . . . . . . . . . . . . . . . . . . . . . . . Fastest Speed 50 | 50 100 180 180 200 180 220 140 140 140 140 150 150 150 150 150 160 160 150 160 150 150 150 172 172 172 185 185 185 165 165 165 165 165 165 Average Speed 173 | 148 170 180 204 200 203 229 217 144 140 148 150 150 155 153 195 160 160 159 160 159 150 173 180 178 191 185 185 185 181 165 165 165 179 182 Slowest Speed 330 | 160 220 180 220 220 220 230 230 150 150 150 150 150 160 160 200 160 160 230 160 160 330 200 200 285 192 185 185 205 185 165 165 205 185 185 Overloaded Moves . | . . . . . . . . . . . . . . . . . . . . . . . . . . . . . . . . . . . Propulsion Burnouts . | . . . . . . . . . . . . . . . . . . . . . . . . . . . . . . . . . . . Robots Hopped . | . . . . . . . . . . . . . . . . . . . . . . . . . . . . . . . . . . . Cave-ins Triggered . | . . . . . . . . . . . . . . . . . . . . . . . . . . . . . . . . . . . Teleports 1 | . . . . . . . . . . . . . . . . . . . . . . . . . . . . . . . 1 . . . Exploration Rate (%) 63 | 4 98 91 97 96 58 87 80 14 92 91 68 93 26 88 80 65 61 30 97 75 77 70 36 93 18 70 63 62 55 18 77 69 18 17 Regions Visited 34 Branch Regions 22 Pre-discovered Areas 13 | . 1 1 . . 1 . 1 . . . 1 . . . . . . . 1 . 2 . . . . . 2 3 . . . . . . Known Exits Taken 26 | . . . 1 . . . 1 1 1 1 1 1 1 1 1 1 1 1 1 1 1 1 . . 1 1 1 1 1 1 1 1 1 . Unknown Exits Taken 6 | 1 1 1 . 1 1 1 . . . . . . . . . . . . . . . . . . . . . . . . . . . . Scrap Searched 18 | . . 2 . 2 . 1 . . 3 1 . 2 . . . . . . 2 2 . . . . . 1 2 . . . . . . . Spaces Dug 504 | . . 16 1 . 8 . 17 2 25 6 . 21 28 . . . 31 54 1 . 7 26 42 . 17 32 7 . 19 21 32 53 26 12 Terrain Destroyed 1174 | . 31 153 88 1 8 25 26 2 25 6 . 52 66 4 3 . 181 61 1 . 7 30 85 . 29 38 7 . 21 21 41 53 54 55 Melee 474 | . . . 1 . 8 . 17 2 13 6 . 21 27 . . . 30 54 1 . 7 26 42 . 17 32 7 . 19 21 32 53 26 12 Projectile 122 | . . . 2 1 . . 9 . . . . 6 1 . 3 . 5 5 . . . 4 16 . 4 3 . . 2 . 9 . 13 39 AOE 578 | . 31 153 85 . . 25 . . 12 . . 25 38 4 . . 146 2 . . . . 27 . 8 3 . . . . . . 15 4 Actions | -11 -10 -10 -9 -9 -9 -8 -8 -7 -7 -7 -7 -6 -6 -6 -6 -6 -6 -5 -5 -5 -5 -4 -4 -4 -4 -4 -4 -4 -3 -3 -3 -2 -1 -1 --------- Run | Scr Mat Min Mat Min Exi Min Mat Fac Low Low Dat Pro Fac Ext Cet Arc Hub Fac Upp Upp War Pro Fac Was Fac Upp Upp Zhi Pro Res Qua Res Acc Com Total 31897 | 84 1107 802 2297 673 388 547 1843 622 1288 1669 82 1220 1179 1307 399 59 826 1597 1012 807 583 774 1904 490 1161 779 681 320 731 671 1216 1596 694 489 Wait 5312 | 11 112 20 469 30 . 5 422 133 535 678 . 51 89 114 4 3 142 378 37 79 . 139 449 1 304 68 198 14 255 85 146 208 23 110 Move 23483 | 57 860 733 1585 610 350 511 1153 434 723 960 80 1086 914 1014 321 51 614 1027 937 717 491 565 1192 447 744 662 458 266 420 529 911 1248 542 271 Hop . | . . . . . . . . . . . . . . . . . . . . . . . . . . . . . . . . . . . Pick Up 284 | 5 21 3 38 . 12 2 22 17 1 1 . 2 14 5 13 1 4 15 3 . 1 6 25 9 5 . 1 4 . 7 21 13 7 6 Fast Attach 150 | 8 3 . 6 . 1 1 6 3 1 3 . 4 5 3 13 . 4 12 7 . 8 . 10 6 9 . 2 10 1 2 17 2 . 3 Attach 97 | . 2 4 3 1 3 1 7 3 . 1 . . 8 3 . 2 . 6 . . . 3 6 2 3 . . 2 2 2 8 3 3 19 Detach 36 | 2 1 . . . 3 . 2 1 . . . . 2 4 . . . 2 . . 2 1 1 3 3 . . 2 . . 4 1 . 2 Swap 478 | . 15 6 31 2 1 4 39 3 4 8 2 18 37 30 10 1 13 33 8 7 3 9 64 2 19 4 5 . 13 10 11 19 37 10 Drop 391 | 1 12 1 46 . 4 5 38 18 2 3 . 10 17 9 29 1 8 23 10 1 10 4 27 19 17 . 4 13 . 9 27 13 5 5 Fire 956 | . 81 35 117 29 . 18 136 7 6 9 . 27 60 24 9 . 11 44 9 3 . 21 72 . 38 13 3 . 21 6 27 33 48 49 Melee 537 | . . . 1 . 14 . 18 3 16 6 . 21 33 . . . 30 57 1 . 7 26 50 1 19 32 10 9 19 21 44 56 29 14 Ram . | . . . . . . . . . . . . . . . . . . . . . . . . . . . . . . . . . . . Kick . | . . . . . . . . . . . . . . . . . . . . . . . . . . . . . . . . . . . Crush 2 | . . . 1 1 . . . . . . . . . . . . . . . . . . . . . . . . . . . . . . Escape Stasis 16 | . . . . . . . . . . . . . . 16 . . . . . . . . . . . . . . . . . . . . Rewire 155 | . . . . . . . . . . . . 1 . 85 . . . . . . 61 . 8 . . . . . . . . . . . Trap . | . . . . . . . . . . . . . . . . . . . . . . . . . . . . . . . . . . . Miscellaneous . | . . . . . . . . . . . . . . . . . . . . . . . . . . . . . . . . . . . Route ------- -11/Scrapyard -10/Materials (discovered 5 exits: *Mat x3 / [*Min x2]) -10/Mines (discovered 2 exits: *Mat x2) -9/Materials (discovered 4 exits: *Mat x3 / *Min) -9/Mines (discovered 3 exits: *Mat x2 / *Exi) -9/Exiles -8/Mines -8/Materials (discovered 3 exits: *Fac x3) -7/Factory -7/Lower Caves -7/Lower Caves (discovered 2 exits: *Fac / *Dat) -7/Data Miner -6/Proximity Caves -6/Factory (discovered 3 exits: *Fac / *Ext x2) -6/Extension (discovered 3 exits: *Fac x2 / *Cet) -6/Cetus (discovered 2 exits: *Fac / *Arc) -6/Archives -6/Hub_04(d) (discovered 2 exits: *Fac x2) -5/Factory (discovered 2 exits: *Upp x2) -5/Upper Caves (discovered 2 exits: *Upp / *War) -5/Upper Caves (discovered 2 exits: *Fac / *War) -5/Warlord -4/Proximity Caves -4/Factory (discovered 3 exits: *Res x3) -4/Waste -4/Factory (discovered 2 exits: *Res / *Upp) -4/Upper Caves -4/Upper Caves (discovered 2 exits: *Res / *Zhi) -4/Zhirov -3/Proximity Caves -3/Research (discovered 3 exits: Res / *Qua x2) -3/Quarantine -2/Research (discovered 3 exits: *Acc x3) -1/Access -1/Command History --------- Turn | Location | Event 43 | -11/Scrapyard | Discovered new exit (range 15) 116 | -11/Scrapyard | Entered Materials 593 | -10/Materials | Build established: Hauler-Mutant 662 | -10/Materials | Discovered new exit (range 11) 664 | -10/Materials | Discovered new exit (range 16) 851 | -10/Materials | Discovered new exit (range 10) 1444 | -10/Materials | Central database locked down 1632 | -10/Materials | Discovered new exit (range 10) 1772 | -10/Materials | Discovered new exit (range 14) 1985 | -10/Materials | Entered Mines 1994 | -10/Mines | Learned location of 1 exit from Materials 2105 | -10/Mines | Found a damaged Exp. Sensor Array with a note attached 2114 | -10/Mines | Found Prototype Device 2242 | -10/Mines | Learned Materials emergency access door positions 2251 | -10/Mines | Discovered new exit (range 10) 2296 | -10/Mines | Discovered new exit (range 9) 2340 | -10/Mines | Learned location of Storage (-7) 2613 | -10/Mines | Assembled infested the area 2618 | -10/Mines | Assisted by a Guerilla fighting off Assembled 3422 | -10/Mines | Entered Materials 3422 | -9/Materials | Evolved 2 slots: Utility x2 3422 | -9/Materials | Identified Exp. Sensor Array 3423 | -9/Materials | Identified exit to Mines 3481 | -9/Materials | Repaired Grenade Launcher 3508 | -9/Materials | Repaired EM Pulse Gun 3536 | -9/Materials | Repaired Lgt. Armor Plating 5038 | -9/Materials | Discovered new exit (range 9) 5819 | -9/Materials | Destroyed 7 combat bots 6333 | -9/Materials | Discovered new exit (range 4) 6514 | -9/Materials | Discovered new exit (range 11) 6744 | -9/Materials | Repaired Hrd. Light Armor Plating 7562 | -9/Materials | Entered Mines 7715 | -9/Mines | Learned location of 1 exit from Materials 7841 | -9/Mines | Learned location of 1 exit from Materials 7849 | -9/Mines | Discovered new exit (range 8) 8226 | -9/Mines | Deemed a non-threat by the Exiles lab entrance 8344 | -9/Mines | Discovered new exit (range 5) 8433 | -9/Mines | Discovered new exit (range 10) 8556 | -9/Mines | Received a Mining Laser from a helpful Derelict 8902 | -9/Mines | Entered Exiles 8902 | -9/Exiles | Accompanied by 1 ally 8932 | -9/Exiles | Led the pair of lost Derelicts to a safe place 8954 | -9/Exiles | Met 8R-AWN 8988 | -9/Exiles | Met EX-HEX 9042 | -9/Exiles | Met EX-BIN 9068 | -9/Exiles | Met EX-DEC 9076 | -9/Exiles | Learned location of Zion (-6) 9602 | -9/Exiles | Discovered new exit (range 11) 9672 | -9/Exiles | Entered Mines 10025 | -8/Mines | Discovered new exit (range 5) 10226 | -8/Mines | Core integrity fell below 50% 10914 | -8/Mines | Entered Materials 10914 | -8/Materials | Evolved 2 slots: Utility x2 10915 | -8/Materials | Identified exit to Factory 11766 | -8/Materials | Discovered exit to Factory (range 10) 12330 | -8/Materials | Repaired Adv. Beam Cannon 13091 | -8/Materials | Garrison activated, responded to threat 13203 | -8/Materials | Garrison activated, responded to threat 14326 | -8/Materials | Entered Factory 14326 | -7/Factory | Evolved 2 slots: Utility x2 14920 | -7/Factory | Fabricated Exp. Sensor Array (x1) 14955 | -7/Factory | Discovered new exit (range 9) 14965 | -7/Factory | Identified exit to Lower Caves 15060 | -7/Factory | Fabricated Arm. Wheel (x2) 15143 | -7/Factory | Entered Lower Caves 15249 | -7/Lower Caves | Learned Factory emergency access door positions 16711 | -7/Lower Caves | Discovered new exit (range 11) 16753 | -7/Lower Caves | Identified exit to Lower Caves 16754 | -7/Lower Caves | Entered another Lower Caves area 16767 | -7/Lower Caves | Encountered a Warlord checkpoint 16786 | -7/Lower Caves | Discovered new exit (range 13) 16803 | -7/Lower Caves | Identified exit to Factory 16818 | -7/Lower Caves | Found Alien Artifact 16818 | -7/Lower Caves | Identified Core Expander 16818 | -7/Lower Caves | Installed Core Expander, added new Weapon slot 16938 | -7/Lower Caves | Spotted B-75 Beast 17085 | -7/Lower Caves | Ambushed by wild Derelicts 17184 | -7/Lower Caves | Learned Factory machine intel 17369 | -7/Lower Caves | Build established: Hauler-Tank 18498 | -7/Lower Caves | Build established: Hauler-Mutant 18655 | -7/Lower Caves | Learned Factory stockpile data 18875 | -7/Lower Caves | Discovered new exit (range 3) 18879 | -7/Lower Caves | Identified exit to Data Miner 18915 | -7/Lower Caves | Entered Data Miner 18915 | -7/Data Miner | Discovered new exit (range 6) 18944 | -7/Data Miner | Met Data Miner 18987 | -7/Data Miner | Learned location of Section 7 (-2) 18987 | -7/Data Miner | Acquired the access code to Warlord's prototype stash 19001 | -7/Data Miner | Received God Mode back door access code from Data Miner 19032 | -7/Data Miner | Identified exit to Proximity Caves 19038 | -7/Data Miner | Entered Proximity Caves 19336 | -6/Proximity Caves | Build established: Hauler-Tank 19840 | -6/Proximity Caves | Escorted by Enhanced Grunt 19851 | -6/Proximity Caves | Spotted B-75 Beast 19921 | -6/Proximity Caves | Destroyed B-75 Beast 19984 | -6/Proximity Caves | Learned location of 1 exit from Factory 20054 | -6/Proximity Caves | Build established: Hauler-Mutant 20422 | -6/Proximity Caves | Build established: Hauler-Tank 20851 | -6/Proximity Caves | Discovered exit to Factory (range 14) 20879 | -6/Proximity Caves | Entered Factory 20879 | -6/Factory | Evolved 2 slots: Power x1, Utility x1 20880 | -6/Factory | Identified exit to Extension 20883 | -6/Factory | Loaded intel: 236 machine locations 20960 | -6/Factory | Build established: Hauler-Mutant 21855 | -6/Factory | Discovered new exit (range 8) 21912 | -6/Factory | Identified exit to Factory 22483 | -6/Factory | Destroyed 7 combat bots 22525 | -6/Factory | Discovered exit to Extension (range 6) 22701 | -6/Factory | Entered Extension 23024 | -6/Extension | Build established: Hauler-Tank 23164 | -6/Extension | Rescued A7 23510 | -6/Extension | Rescued a captive Derelict 23524 | -6/Extension | Rescued a captive Derelict 23766 | -6/Extension | Build established: Hauler-Skirmisher 23952 | -6/Extension | Spotted B-75 Beast 23965 | -6/Extension | Allies destroyed B-75 Beast 23970 | -6/Extension | Spotted B-75 Beast 23986 | -6/Extension | Destroyed B-75 Beast 23999 | -6/Extension | Discovered exit to Factory (range 3) 24035 | -6/Extension | Rescued a captive Derelict 24037 | -6/Extension | Rescued a captive Derelict 24123 | -6/Extension | Rescued a captive Derelict 24127 | -6/Extension | Rescued a captive Derelict 24368 | -6/Extension | Rescued a captive Derelict 24399 | -6/Extension | Rescued a captive Derelict 24486 | -6/Extension | Build established: Commander-Mutant 24520 | -6/Extension | Disrupted transfer network 24523 | -6/Extension | Discovered exit to Factory (range 10) 24525 | -6/Extension | Discovered new exit (range 6) 24600 | -6/Extension | Identified exit to Cetus 24611 | -6/Extension | Entered Cetus 24611 | -6/Cetus | Accompanied by 13 allies 24616 | -6/Cetus | Acquired a Cetus Manufacturing Module code from A7 24636 | -6/Cetus | Spotted Cetus Guard 24636 | -6/Cetus | Spotted Cetus Guard 24640 | -6/Cetus | Spotted Cetus Guard 24643 | -6/Cetus | Spotted Cetus Guard 24646 | -6/Cetus | Allies destroyed Cetus Guard 24648 | -6/Cetus | Allies destroyed Cetus Guard 24652 | -6/Cetus | Allies destroyed Cetus Guard 24654 | -6/Cetus | Allies destroyed Cetus Guard 24795 | -6/Cetus | Started Cetus Manufacturing Module 24811 | -6/Cetus | Escorted A7 to Cetus Mainframe 24820 | -6/Cetus | Manufactured an Enhanced Grunt 24845 | -6/Cetus | Manufactured an Enhanced Grunt 24870 | -6/Cetus | Manufactured an Enhanced Grunt 24895 | -6/Cetus | Manufactured an Enhanced Grunt 24920 | -6/Cetus | Manufactured an Enhanced Grunt 25027 | -6/Cetus | Discovered new exit (range 16) 25066 | -6/Cetus | Identified exit to Archives 25068 | -6/Cetus | Build established: Hauler-Mutant 25106 | -6/Cetus | Spotted Cetus Guard 25107 | -6/Cetus | Spotted Cetus Guard 25112 | -6/Cetus | Spotted Cetus Guard 25113 | -6/Cetus | Spotted Cetus Guard 25116 | -6/Cetus | Extracted ID and sensor layout for unrecognized location from A7's data core 25124 | -6/Cetus | Destroyed Cetus Guard 25124 | -6/Cetus | Allies destroyed Cetus Guard 25128 | -6/Cetus | Allies destroyed Cetus Guard 25129 | -6/Cetus | Allies destroyed Cetus Guard 25131 | -6/Cetus | Discovered exit to Factory (range 15) 25155 | -6/Cetus | Met Revision 17 25237 | -6/Cetus | Found Prototype Device 25237 | -6/Cetus | Identified Exp. Thermal Shield 25319 | -6/Cetus | Entered Archives 25319 | -6/Archives | Accompanied by 3 allies 25347 | -6/Archives | Met Zhirov 25353 | -6/Archives | Reinforcements dispatched to Archives 25360 | -6/Archives | Discovered new exit (range 14) 25382 | -6/Archives | Identified exit to Hub_04(d) 25409 | -6/Archives | Entered Hub_04(d) 25409 | -6/Hub_04(d) | Accompanied by 3 allies 25803 | -6/Hub_04(d) | Discovered exit to Factory (range 33) 26099 | -6/Hub_04(d) | Discovered exit to Factory (range 5) 26654 | -6/Hub_04(d) | Network Hub disabled 26665 | -6/Hub_04(d) | Entered Factory 26665 | -5/Factory | Accompanied by 1 ally 26665 | -5/Factory | Evolved 2 slots: Utility x2 27216 | -5/Factory | Repaired Quantum Reactor 27357 | -5/Factory | Found Exp. Terrain Scan Processor 28150 | -5/Factory | Build established: Scavenger-Mutant 28311 | -5/Factory | Repaired Imp. Shield Generator 28465 | -5/Factory | Identified exit to Upper Caves 29052 | -5/Factory | Entered Upper Caves 29054 | -5/Upper Caves | Attracted the attention of an 0b10 checkpoint 29084 | -5/Upper Caves | Learned location of Warlord (-5) 29416 | -5/Upper Caves | A Derelict revealed a hidden shortcut to "reach the base" 29421 | -5/Upper Caves | Identified exit to Warlord 30484 | -5/Upper Caves | Discovered new exit (range 11) 30646 | -5/Upper Caves | Identified exit to Upper Caves 30648 | -5/Upper Caves | Entered another Upper Caves area 30650 | -5/Upper Caves | Attracted the attention of an 0b10 checkpoint 30680 | -5/Upper Caves | Discovered new exit (range 9) 31478 | -5/Upper Caves | Encountered a Warlord checkpoint 31499 | -5/Upper Caves | Discovered exit to Warlord (range 6) 31501 | -5/Upper Caves | Learned location of 1 exit from Factory 31705 | -5/Upper Caves | Learned Armory stockpile data 31705 | -5/Upper Caves | Learned Armory terminal intel 31893 | -5/Upper Caves | Entered Warlord 32154 | -5/Warlord | Met Warlord 32160 | -5/Warlord | Warlord's base attacked by MAIN.C 32161 | -5/Warlord | Build established: Hauler-Mutant 32171 | -5/Warlord | Opened Warlord's prototype stash 32215 | -5/Warlord | Found Prototype Reactor 32324 | -5/Warlord | Found Prototype Energy Cannon 32324 | -5/Warlord | Identified Vortex Driver 32508 | -5/Warlord | Learned location of Armory (-4) 32508 | -5/Warlord | Learned Armory trap positions 32510 | -5/Warlord | Warlord forces counterattacked 32510 | -5/Warlord | Learned 4 Research zone layouts 32510 | -5/Warlord | Learned 4 Quarantine zone layouts 32511 | -5/Warlord | Learned Research terminal intel 32534 | -5/Warlord | Spotted Striker 32692 | -5/Warlord | Spotted Executioner 32716 | -5/Warlord | Discovered new exit (range 14) 32734 | -5/Warlord | Identified exit to Proximity Caves 32735 | -5/Warlord | Entered Proximity Caves 32736 | -4/Proximity Caves | Identified exit to Factory 33042 | -4/Proximity Caves | Attracted the attention of an 0b10 checkpoint 33640 | -4/Proximity Caves | Build established: Scavenger-Mutant 34007 | -4/Proximity Caves | Entered Factory 34007 | -4/Factory | Evolved 2 slots: Propulsion x1, Utility x1 34008 | -4/Factory | Identified exit to Research 34592 | -4/Factory | Hacking Suite fried by hacking feedback 34942 | -4/Factory | Found Quantum Capacitor 35066 | -4/Factory | Found Prototype Slashing Weapon 35303 | -4/Factory | Build established: Hauler-Mutant 35393 | -4/Factory | Discovered exit to Research (range 10) 35720 | -4/Factory | Repaired Quantum Reactor 35829 | -4/Factory | Repaired Centrium Medium Armor Plating 35886 | -4/Factory | Repaired Adv. Cooling System 36205 | -4/Factory | Discovered exit to Research (range 15) 36757 | -4/Factory | First assault squad dispatched 36785 | -4/Factory | Incoming assault squad redirected 37100 | -4/Factory | Sucked down chute 37100 | -4/Factory | Entered Waste 37101 | -4/Waste | Joined by Warlord forces that had cleared the area 37101 | -4/Waste | Identified exit to Factory 37183 | -4/Waste | Identified Centrium Greatsword 37402 | -4/Waste | Found Damper Plating 37560 | -4/Waste | A Compactor rumbled back to life 37560 | -4/Waste | Spotted C-40 Crusher 37560 | -4/Waste | Allies destroyed C-40 Crusher 37579 | -4/Waste | Found Damper Plating 37601 | -4/Waste | Found Damper Plating 37934 | -4/Waste | Entered Factory 37934 | -4/Factory | Accompanied by 20 allies 38082 | -4/Factory | Discovered new exit (range 8) 38095 | -4/Factory | Identified exit to Upper Caves 38245 | -4/Factory | Discovered exit to Research (range 9) 39459 | -4/Factory | Fabricated Exp. Sensor Array (x1) 39567 | -4/Factory | Fabricated Exp. Transmission Jammer (x1) 39637 | -4/Factory | Fabricated Biometal Heavy Treads (x2) 39684 | -4/Factory | First assault squad dispatched 39703 | -4/Factory | Incoming assault squad redirected 39719 | -4/Factory | Fabricated Biometal Heavy Treads? 39854 | -4/Factory | Entered Upper Caves 40510 | -4/Upper Caves | Learned Research trap positions 41197 | -4/Upper Caves | Attracted the attention of an 0b10 checkpoint 41223 | -4/Upper Caves | Discovered new exit (range 13) 41265 | -4/Upper Caves | Identified exit to Upper Caves 41267 | -4/Upper Caves | Entered another Upper Caves area 41318 | -4/Upper Caves | Discovered exit to Research (range 13) 41674 | -4/Upper Caves | Acquired the password to a Derelict Tinkerer's latest research 41695 | -4/Upper Caves | Found Prototype Special Weapon 41887 | -4/Upper Caves | Learned 8 Research zone layouts 41887 | -4/Upper Caves | Learned Research emergency access door positions 41887 | -4/Upper Caves | Learned Research stockpile data 41887 | -4/Upper Caves | Learned Armory security intel 42094 | -4/Upper Caves | Learned location of 1 exit from Research 42309 | -4/Upper Caves | Discovered new exit (range 8) 42320 | -4/Upper Caves | Identified exit to Zhirov 42358 | -4/Upper Caves | Entered Zhirov 42358 | -4/Zhirov | Accompanied by 3 allies 42358 | -4/Zhirov | Discovered new exit (range 3) 42427 | -4/Zhirov | Learned location of Quarantine (-3) 42427 | -4/Zhirov | Learned location of Testing (-2) 42427 | -4/Zhirov | Learned location of Command (-1) 42511 | -4/Zhirov | Found Alien Artifact 42511 | -4/Zhirov | Identified Integrated Reactor 42511 | -4/Zhirov | Installed Integrated Reactor, increased core energy generation (+2%) 42689 | -4/Zhirov | Identified Molecular Deconstructor 42698 | -4/Zhirov | Identified Vortex Chain Reactor 42750 | -4/Zhirov | Found Alien Artifact 42912 | -4/Zhirov | Identified exit to Proximity Caves 42914 | -4/Zhirov | Entered Proximity Caves 42914 | -3/Proximity Caves | Accompanied by 3 allies 43781 | -3/Proximity Caves | Received a Behemoth hack from an annoying Tinkerer 44039 | -3/Proximity Caves | Discovered exit to Research (range 6) 44054 | -3/Proximity Caves | Entered Research 44054 | -3/Research | Evolved 2 slots: Propulsion x1, Utility x1 44055 | -3/Research | Identified exit to Research 44057 | -3/Research | Loaded intel: 79 trap records 44060 | -3/Research | Loaded intel: 17 terminal locations 44104 | -3/Research | Identified exit to Quarantine 44254 | -3/Research | Fabricated Rnf. Quantum Reactor (x2) 44254 | -3/Research | Revision forces began assault on 0b10 44292 | -3/Research | Met up with Revision 17++ 44458 | -3/Research | Identified Transdimensional Reconstructor 44754 | -3/Research | Research terminal network offline 45110 | -3/Research | Entered Quarantine 45247 | -3/Quarantine | Cryocooling Duct disabled 45262 | -3/Quarantine | Ambient heat levels rising (+20) 45262 | -3/Quarantine | Non-combat units ordered to evacuate 45349 | -3/Quarantine | Repaired Imp. Energy Mantle 45457 | -3/Quarantine | Found Alien Artifact 45592 | -3/Quarantine | Found Alien Energy Cannon 45592 | -3/Quarantine | Identified Core Cannon 45772 | -3/Quarantine | Found Alien Artifact 45811 | -3/Quarantine | Identified Core Reset Matrix 45811 | -3/Quarantine | Identified Subatomic Replicator 46024 | -3/Quarantine | Discovered exit to Research (range 3) 46266 | -3/Quarantine | Found Alien Artifact 46266 | -3/Quarantine | Identified Stasis Generator 46677 | -3/Quarantine | Found Alien Impact Weapon 46677 | -3/Quarantine | Identified Core Stripper 46850 | -3/Quarantine | Warped through subspace 46882 | -3/Quarantine | Found Alien Artifact 46885 | -3/Quarantine | Found Alien Artifact 46887 | -3/Quarantine | Found Alien Artifact 46901 | -3/Quarantine | Found Alien Artifact 46957 | -3/Quarantine | Identified Hpw. Transdimensional Reconstructor (x3) 47013 | -3/Quarantine | Identified Dimensional Node Initializer 47013 | -3/Quarantine | Initialized slip node 47017 | -3/Quarantine | Found Dimensional Node Initializer 47025 | -3/Quarantine | Found Transdimensional Reconstructor 47034 | -3/Quarantine | Entered Research 47034 | -2/Research | Warlord forces began assault on 0b10 47034 | -2/Research | Evolved 2 slots: Utility x2 47144 | -2/Research | Research machine network offline 47354 | -2/Research | Borebot progress halted 47365 | -2/Research | Borebot progress halted 47446 | -2/Research | Borebot progress halted 47522 | -2/Research | Borebot progress halted 47848 | -2/Research | Discovered new exit (range 9) 47923 | -2/Research | Warlord destroyed during the assault 48363 | -2/Research | Discovered new exit (range 16) 48386 | -2/Research | Identified exit to Access 48877 | -2/Research | Discovered exit to Access (range 15) 48895 | -2/Research | Found Gamma Bomb Array 49582 | -2/Research | Entered Access 49582 | -1/Access | Evolved 2 slots: Utility x2 49932 | -1/Access | Garrison activated, responded to threat 50264 | -1/Access | Identified exit to Command 50333 | -1/Access | Found Prototype Launcher 50343 | -1/Access | Identified Com. Tesla Bomb Launcher 50804 | -1/Access | Central database locked down 50858 | -1/Access | Entered Command 50966 | -1/Command | Spotted B-99 Colossus 51158 | -1/Command | Lost 5 parts (4u1w) 51571 | -1/Command | Spotted M Guard 51575 | -1/Command | Spotted Combat Programmer 51576 | -1/Command | Spotted Combat Programmer 51577 | -1/Command | Spotted M Guard 51605 | -1/Command | Destroyed Combat Programmer 51609 | -1/Command | Destroyed Combat Programmer 51626 | -1/Command | Core integrity fell below 50% 51660 | -1/Command | Core integrity fell below 20% 51667 | -1/Command | Destroyed by G-73 Enforcer with Heavy Laser Last Messages --------------- 51640_ Overheating: Rnf. Quantum Reactor damaged (-19). 51640_ Overheating: Imp. Energy Well damaged (-22). 51642_ The unstable cave ceiling collapses. 51642_ Hcp. Storage Unit destroyed. 51642_ Rnf. Quantum Reactor destroyed. 51642_ K-01 Serf collects debris. 51643_ The unstable cave ceiling collapses. 51647_ K-01 Serf collects debris. 51650_ The unstable cave ceiling collapses. 51653_ Broken Particle Reactor destroyed. 51654_ The unstable cave ceiling collapses. 51661_ Adv. Energy Well destroyed. 51663_ K-01 Serf collects debris. 51664_ Hcp. Storage Unit destroyed. 51665_ The unstable cave ceiling collapses. 51665_ Hcp. Storage Unit destroyed. 51665_ Broken Exp. Transmission Jammer destroyed. 51665_ Imp. Energy Well destroyed. 51666_ The unstable cave ceiling collapses. 51667_ 0LY:UZW&G%1K8ZQXAKB8YVFYUK9|D%M:VP Map ----- +----------------------------------------------------+ | ?????????????????????????????# # """ #?# | | ??????????????????????????????# """" #?# | | ??????????????????????????????## """T #?# | | ???????????????????????????????# """ ### | | ???????????????????????????????# ## # | | ???????????????????????????????# + # | | ???????????????????????????????########## # | | ????????????????????????????????????????# # | | ????????????????????????????????????????###### | | ?????????????????????????????????????????????# | | ?????????????????????????????????????????????# | | ?????????????????????????????????????????????# | | ?????????????????????????????????????????????# | | ?????????????????????????????????????????????+ | | ?????????????????????????????????????????????# | | ?????????????????????????????????????????????# | | ?????????????????????????????????????????????# | | ?????????????????????????????????????????????# | | ?????????????????###########?#####???????????# | | ???????????# ????# # # ### #???????????# | | ??????????## W ### W # W ## ############# | | ????????? W / | | ????????? Y Y / g g | | ???????? g/ g | | ???????? % ]!] /g | | ???????? % ]@! / % | | ??????????#; ;; W | ] W ### #+ % #### | | ?????????# ; # # k #?## % ## | | ?????????? ??????# ## ####??# ## | | ?????????????????# ## # #?????# !## | | ?????????????????## # #?????# ## | | ??????????????????## ###?????# ## | | ???????????????????##########???????# ### | | ????????????????????????????????????# ] #?# | | ????????????????????????????????????# #?# | | ????????????????????????????????????# #?# | | ????????????????????????????????????# #?# | | ????????????????????????????????????# #?# | | ????????????????????????????????????#########?# | | ??????????????????????????????????????????????# | | ??????????????????????????????????????????????# | | ??????????????????????????????????????????????# | | ??????????????????????????????????????????????? | | ?????????????????????????????????????????????????? | | ?????????????????????????????????????????????????? | | ?????????????????????????????????????????????????? | | ?????????????????????????????????????????????????? | | ?????????????????????????????????????????????????? | | ?????????????????????????????????????????????????? | | ?????????????????????????????????????????????????? | +----------------------------------------------------+ Best States ------------- Heat Dissipation 133 Coolant Potential 65 Energy Generation 67 Energy Capacity 2250 Matter Stores 300 Matter Capacity 300 Sight Range 16 Robot Scan Range 30 Terrain Scan Density 10 Jamming Range 22 Power Amplification 30 Armor Coverage 1650 Resistance: KI 30 Resistance: TH 30 Resistance: EM 90 Weapon Shielding 66 Weapon Cycling 15 Phase Shifting 10 Evasion (%) 50 Target Analysis 8 Recoil Reduction 5 Matter Filtering 50 Particle Charging 25 Offensive Hacking 14 Item Schematics ----------------- Arm. Wheel | -9/Materials | Scanalyzed Exp. Sensor Array | -9/Materials | Scanalyzed Hvy. EM Pulse Gun | -9/Materials | Extracted EM Pulse Gun | -9/Materials | Extracted Mining Laser | -9/Materials | Extracted Sensor Array | -9/Materials | Extracted Lrg. Matter Pod | -9/Materials | Extracted Hammer | -9/Materials | Extracted Lrg. Battery | -9/Materials | Extracted Imp. Aluminum Leg | -9/Materials | Extracted Med. Matter Pod | -9/Materials | Extracted Imp. Light Cannon | -9/Materials | Extracted Shotgun | -9/Materials | Extracted Beam Cannon | -9/Materials | Extracted Adv. Beam Cannon | -9/Materials | Extracted Targeting Computer | -9/Materials | Extracted Combat Drone Bay | -7/Data Miner | Free Lgt. Regenerative Plating | -7/Data Miner | Free Exp. Terrain Scan Processor | -7/Data Miner | Free Tactical Coordination Suite | -7/Data Miner | Free Exp. Transmission Jammer | -7/Data Miner | Free Exp. ECM Suite | -7/Data Miner | Free Cloaking Device | -7/Data Miner | Free Kinetic Spear | -7/Data Miner | Free Arm. Huge Wheel | -6/Factory | Hacked Biometal Heavy Treads | -4/Factory | Scanalyzed Assault Drone Bay | -4/Zhirov | Free Exp. Heat Sink | -4/Zhirov | Free Exp. Optical Array | -4/Zhirov | Free Imp. Arc Thrower | -4/Zhirov | Free Robot Schematics ------------------ S-27 Virus | -7/Data Miner | Free G-50 Soldier | -7/Data Miner | Free G-67 Veteran | -7/Data Miner | Free I-36 Angel | -7/Data Miner | Free I-47 Archangel | -7/Data Miner | Free Fabricated ------------ Exp. Sensor Array | x1 | -7/Factory Arm. Wheel | x2 | -7/Factory Exp. Sensor Array | x1 | -4/Factory Exp. Transmission Jammer | x1 | -4/Factory Biometal Heavy Treads | x2 | -4/Factory Biometal Heavy Treads | x2 | -4/Factory Rnf. Quantum Reactor | x2 | -3/Research | Preloaded Alien Tech Used ----------------- Core Expander Integrated Reactor Core Cannon Stasis Generator Core Stripper Transdimensional Reconstructor Dimensional Node Initializer Achievements -------------- Prison Break Project G-00 Revising The Future Revolutionary Research Challenges ------------ None Game ------ Seed ReactionVisualDesublimator Manual? 0 Play Time 07:59:38 Cumulative 177.8 hours Start 2020.07.03 @ 19:06:17 End 2020.07.04 @ 22:34:13 Sessions 3 Manual Loads 0 Difficulty Rogue Special Mode None Game No. 93 Rogue 92 Adventurer 1 Explorer 0 Win Type - Total 7 Types 6/0/0/1/0/0/0 Lore% 80 Gallery% 79 Achievement% 62 Wizard Run 0 Options --------- ASCII 1 Keyboard 1 Movement Numpad Keybinds 0 Fullscreen 2 Font 24/Smallcaps Map View 76x50 Tactical HUD 1 Map Filters NONE Filters NONE Steam 1 RUN: 5b40a9a1-0526-4f31-a125-43d9065286aa